NUMERO_MANDATO;RIGA_MANDATO;QUIET;IMPORTO_RIGA;IMPORTO_MANDATO;BENEFICIARIO;CIG;TITOLO_PAGAMENTO;DATA_MANDATO;CAPITOLO;ARTICOLO;NUMERO_IMPEGNO;TITOLO;DESCR_TITOLO;LIVELLO_II;DESCR_LIVELLO_II;LIVELLO_III;DESCR_LIVELLO_III;LIVELLO_IV;DESCR_LIVELLO_IV;LIVELLO_V;DESCR_LIVELLO_V;DATA_PAG_EFF;
19;1;0;"350,80";"350,80";ECONOMO COMUNALE; ;RIMBORSO BUONI ECONOMALI QUARTO TRIMESTRE 2017;08-01-2018;110224;0;26;1;Spese correnti;3;Acquisto di beni e servizi;1;Acquisto di beni;2;Altri beni di consumo;999;Altri beni e materiali di consumo n.a.c.;08-01-2018;
20;1;0;"209,93";"209,93";ECONOMO COMUNALE; ;RIMBORSO BUONI ECONOMALI QUARTO TRIMESTRE 2017;08-01-2018;110258;0;30;1;Spese correnti;3;Acquisto di beni e servizi;1;Acquisto di beni;2;Altri beni di consumo;999;Altri beni e materiali di consumo n.a.c.;08-01-2018;
21;1;0;"150,00";"150,00";ECONOMO COMUNALE;Z8C182EB5A;RIMBORSO BUONI ECONOMALI QUARTO TRIMESTRE 2017;08-01-2018;110236;0;28;1;Spese correnti;3;Acquisto di beni e servizi;1;Acquisto di beni;2;Altri beni di consumo;999;Altri beni e materiali di consumo n.a.c.;08-01-2018;
22;1;0;"321,00";"321,00";ECONOMO COMUNALE; ;RIMBORSO BUONI ECONOMALI QUARTO TRIMESTRE 2017;08-01-2018;110248;0;27;1;Spese correnti;3;Acquisto di beni e servizi;2;Acquisto di servizi;19;Servizi informatici e di telecomunicazioni;1;Gestione e manutenzione applicazioni;08-01-2018;
23;1;0;"100,00";"100,00";ECONOMO COMUNALE; ;RIMBORSO BUONI ECONOMALI QUARTO TRIMESTRE 2017;08-01-2018;110260;0;29;1;Spese correnti;3;Acquisto di beni e servizi;2;Acquisto di servizi;16;Servizi amministrativi;2;Spese postali;08-01-2018;
24;1;0;"5,00";"5,00";ECONOMO COMUNALE; ;RIMBORSO BUONI ECONOMALI QUARTO TRIMESTRE 2017;08-01-2018;170108;0;40;1;Spese correnti;3;Acquisto di beni e servizi;1;Acquisto di beni;2;Altri beni di consumo;2;"Carburanti, combustibili e lubrificanti";08-01-2018;
25;1;0;"1.500,00";"1.500,00";BANCA POPOLARE DELL'EMILIA ROMAGNA;Z0C02425F5;PROVVISORIO DI USCITA N.9;08-01-2018;110238;0;20;1;Spese correnti;3;Acquisto di beni e servizi;2;Acquisto di servizi;17;Servizi finanziari;2;Oneri per servizio di tesoreria;08-01-2018;
57;1;0;"1.110,72";"1.110,72";POSTE ITALIANE S.P.A.;Z7B14AEE33;SALDO Fatt.n. 8717215650  del 27/07/2017 SPESE POSTALI MAGGIO 2017;17-01-2018;110260;0;135;1;Spese correnti;3;Acquisto di beni e servizi;2;Acquisto di servizi;16;Servizi amministrativi;2;Spese postali;17-01-2018;
58;1;0;"600,00";"600,00";IT CREATIVE DI D'ANGELO FRANCESCO;Z6D1D90C9A;SALDO Fatt.n. 11/A  del 29/08/2017 ASSISTENZA POSTAZIONI INFORMATICHE E SITO ISTITUZIONALE AGOSTO 2017;17-01-2018;110248;0;122;1;Spese correnti;3;Acquisto di beni e servizi;2;Acquisto di servizi;19;Servizi informatici e di telecomunicazioni;10;Servizi di consulenza e prestazioni professionali ICT;17-01-2018;
59;1;0;"202,02";"202,02";MYO S.R.L.;Z6B1FBB649;SALDO Fatt.n. 2040/170020033  del 08/09/2017 ARTICOLI DI CANCELLERIA;17-01-2018;110224;0;152;1;Spese correnti;3;Acquisto di beni e servizi;1;Acquisto di beni;2;Altri beni di consumo;1;"Carta, cancelleria e stampati";17-01-2018;
60;1;0;"475,80";"475,80";DIGITAL SERVICE S.N.C.;Z531FDF637;SALDO Fatt.n. 54/02  del 25/09/2017 INTERVENTO TECNICO SU FOTOCOPIATRICE SHARP;17-01-2018;110224;0;133;1;Spese correnti;3;Acquisto di beni e servizi;1;Acquisto di beni;2;Altri beni di consumo;999;Altri beni e materiali di consumo n.a.c.;17-01-2018;
61;1;0;"274,50";"591,70";DECART SRL;Z242075485;SALDO Fatt.n. 566/PA  del 31/10/2017 N. 100 RISME DI CARTA PER FOTOCOPIE FORMATO A4;17-01-2018;110224;0;156;1;Spese correnti;3;Acquisto di beni e servizi;1;Acquisto di beni;2;Altri beni di consumo;1;"Carta, cancelleria e stampati";17-01-2018;
61;2;0;"317,20";"591,70";DECART SRL;Z242075485;SALDO Fatt.n. 567/PA  del 31/10/2017 N. 6000 BUSTE INTESTATE CON FINESTRA E SENZA;17-01-2018;110224;0;156;1;Spese correnti;3;Acquisto di beni e servizi;1;Acquisto di beni;2;Altri beni di consumo;1;"Carta, cancelleria e stampati";17-01-2018;
62;1;0;"150,00";"150,00";GULLIVER LIBRERIE DI CAMPITELLI FLAVIO;Z411FA53CD;SALDO Fatt.n. FE03  del 26/08/2017 COSTITUZIONE DELLA REPUBBLICA ITALIANA;17-01-2018;110236;0;127;1;Spese correnti;3;Acquisto di beni e servizi;1;Acquisto di beni;2;Altri beni di consumo;1;"Carta, cancelleria e stampati";17-01-2018;
63;1;0;"157,38";"157,38";DUEFFE SPORT S.A.S. di FAGGIN FRANCESCA & C.;Z5C202536F;SALDO Fatt.n. 3281  del 05/10/2017 BANDIERE;17-01-2018;130120;0;142;1;Spese correnti;3;Acquisto di beni e servizi;1;Acquisto di beni;2;Altri beni di consumo;999;Altri beni e materiali di consumo n.a.c.;17-01-2018;
64;1;0;"616,69";"616,69";C.I.M.A.  SOC. COOP.  A.R.L.;Z721CA5CDF;SALDO Fatt.n. 254/PA  del 05/10/2017 SERVIZIO DI ASILO PER CANI NEI MESI DI LUGLIO-AGOSTO E SETTEMBRE 2017;17-01-2018;160532;0;25;1;Spese correnti;3;Acquisto di beni e servizi;2;Acquisto di servizi;15;Contratti di servizio pubblico;11;Contratti di servizio per la lotta al randagismo;17-01-2018;
65;1;0;"1.952,00";"1.952,00";MORETTI CRISTIAN;Z071D66519;SALDO Fatt.n. 3PA  del 31/05/2017 LIVELLAMENTO E PULIZIA SPIAGGIA LOC. FOCE  E PULIZIA PARCO CAMPO SPORTIVO;17-01-2018;270116;0;49;2;Spese in conto capitale;2;Investimenti fissi lordi e acquisto di terreni;1;Beni materiali;99;Altri beni materiali;999;Altri beni materiali diversi;17-01-2018;
66;1;0;"234,85";"234,85";DI BIASE D. & C. S.N.C.;Z8C1D664AB;SALDO Fatt.n. 12/PA  del 30/06/2017 MATERIALE IDROTERMOSANITARIO;17-01-2018;140210;0;52;1;Spese correnti;3;Acquisto di beni e servizi;1;Acquisto di beni;2;Altri beni di consumo;999;Altri beni e materiali di consumo n.a.c.;17-01-2018;
67;1;0;"219,66";"219,66";EUROLUX S.R.L.;Z751D6645A;SALDO Fatt.n. 17/770  del 30/06/2017 MATERIALE ELETTRICO;17-01-2018;170224;0;54;1;Spese correnti;3;Acquisto di beni e servizi;1;Acquisto di beni;2;Altri beni di consumo;999;Altri beni e materiali di consumo n.a.c.;17-01-2018;
68;1;0;"610,00";"610,00";ALSA S.A.S.;ZBB1EA414D;SALDO Fatt.n. P000009  del 22/05/2017 SMALTIMENTO CARCASSA DELFINO;17-01-2018;160918;0;107;1;Spese correnti;3;Acquisto di beni e servizi;2;Acquisto di servizi;15;Contratti di servizio pubblico;4;Contratti di servizio per la raccolta rifiuti;17-01-2018;
69;1;0;"965,83";"965,83";BLUE LINE SOC. COOP. SOCIALE;X0919A7161;SALDO Fatt.n. 177  del 30/06/2017 PULIZIA DEI LOCALI COMUNALI NEL MESE DI GIUGNO 2017;17-01-2018;110256;0;143;1;Spese correnti;3;Acquisto di beni e servizi;2;Acquisto di servizi;13;Servizi ausiliari per il funzionamento dell'ente;2;Servizi di pulizia e lavanderia;17-01-2018;
70;1;0;"45,49";"857,77";DELLE VIGNE TOMMASO S.R.L.;Z1D1D6632F;SALDO Fatt.n. 527/02  del 30/06/2017 FERRAMENTA;17-01-2018;170112;0;53;1;Spese correnti;3;Acquisto di beni e servizi;1;Acquisto di beni;2;Altri beni di consumo;999;Altri beni e materiali di consumo n.a.c.;17-01-2018;
70;2;0;"812,28";"857,77";DELLE VIGNE TOMMASO S.R.L.;Z1D1D6632F;SALDO Fatt.n. 407/02  del 31/05/2017 FERRAMENTA;17-01-2018;170112;0;53;1;Spese correnti;3;Acquisto di beni e servizi;1;Acquisto di beni;2;Altri beni di consumo;999;Altri beni e materiali di consumo n.a.c.;17-01-2018;
71;1;0;"719,80";"719,80";AMBIQ S.R.L.;Z0D1D662CB;SALDO Fatt.n. 335/2017  del 31/07/2017 DERATTIZZAZIONE NEI GIORNI 11 E 15 LUGLIO 2017;17-01-2018;161232;0;85;1;Spese correnti;3;Acquisto di beni e servizi;2;Acquisto di servizi;15;Contratti di servizio pubblico;999;Altre spese per contratti di servizio pubblico;17-01-2018;
72;1;0;"427,00";"427,00";SEBACH  S.R.L.;Z8E1FA4B24;SALDO Fatt.n. V17109045  del 29/08/2017 NOLEGGIO BAGNI CHIMICI;17-01-2018;160944;0;129;1;Spese correnti;3;Acquisto di beni e servizi;2;Acquisto di servizi;15;Contratti di servizio pubblico;5;Contratti di servizio per il conferimento in discarica dei rifiuti;17-01-2018;
73;1;0;"2.400,00";"2.400,00";TESSITORE   S.P.A.;ZD71D66546;ACCONTO Fatt.n. 37 / 1010  del 11/09/2017 MANUTENBZIONE STRAORDINARIA SCUOLABUS BZ353RR;17-01-2018;140446;0;57;1;Spese correnti;3;Acquisto di beni e servizi;2;Acquisto di servizi;9;Manutenzione ordinaria e riparazioni;1;"Manutenzione ordinaria e riparazioni di mezzi di trasporto ad uso civile, di sicurezza e ordine pubblico";17-01-2018;
74;1;0;"650,00";"650,00";TESSITORE   S.P.A.; ;SALDO Fatt.n. 37 / 1010  del 11/09/2017 MANUTENBZIONE STRAORDINARIA SCUOLABUS BZ353RR;17-01-2018;170146;0;120;1;Spese correnti;3;Acquisto di beni e servizi;2;Acquisto di servizi;9;Manutenzione ordinaria e riparazioni;1;"Manutenzione ordinaria e riparazioni di mezzi di trasporto ad uso civile, di sicurezza e ordine pubblico";17-01-2018;
75;1;0;"2.400,00";"2.400,00";VALTRIGNO; ;GESTIONE DEI SERVIZI CONNESSI ALLA BALNEAZIONE PER LA STAGIONE 2017;17-01-2018;180640;0;112;1;Spese correnti;3;Acquisto di beni e servizi;2;Acquisto di servizi;9;Manutenzione ordinaria e riparazioni;12;Manutenzione ordinaria e riparazioni di terreni e beni materiali non prodotti;17-01-2018;
76;1;0;"673,07";"673,07";BUTAN GAS;Z8D1D664F0;SALDO Fatt.n. 15/265P  del 15/09/2017 GPL PROPANO;17-01-2018;161332;0;86;1;Spese correnti;3;Acquisto di beni e servizi;2;Acquisto di servizi;5;Utenze e canoni;6;Gas;17-01-2018;
77;1;0;"395,28";"395,28";OFFICINA VALERIO & ZINNI DI ZINNI MAURO;ZD71D66546;SALDO Fatt.n. 1/01  del 01/07/2017 MANUTENZIONE VEICOLO PALA VENIERI;17-01-2018;170146;0;56;1;Spese correnti;3;Acquisto di beni e servizi;2;Acquisto di servizi;9;Manutenzione ordinaria e riparazioni;1;"Manutenzione ordinaria e riparazioni di mezzi di trasporto ad uso civile, di sicurezza e ordine pubblico";17-01-2018;
78;1;0;"507,79";"507,79";EUROLUX S.R.L.;Z751D6645A;SALDO Fatt.n. 17/930  del 31/07/2017 MATERIALE ELETTRICO;19-01-2018;170224;0;54;1;Spese correnti;3;Acquisto di beni e servizi;1;Acquisto di beni;2;Altri beni di consumo;999;Altri beni e materiali di consumo n.a.c.;19-01-2018;
79;1;0;"40,70";"40,70";VEMAC S.R.L.;Z8C1D664AB;SALDO Fatt.n. 000177  del 31/08/2017 MATERIALE EDILE;19-01-2018;170112;0;50;1;Spese correnti;3;Acquisto di beni e servizi;1;Acquisto di beni;2;Altri beni di consumo;999;Altri beni e materiali di consumo n.a.c.;19-01-2018;
80;1;0;"127,49";"127,49";GROUP ANTIFIRE ESTINTORI DI IANIERI MARIELLA;Z051D6658A;SALDO Fatt.n. 748  del 23/08/2017 CONTROLLO SEMESTRALE ESTINTORI;19-01-2018;140340;0;98;1;Spese correnti;3;Acquisto di beni e servizi;2;Acquisto di servizi;5;Utenze e canoni;999;Utenze e canoni per altri servizi n.a.c.;19-01-2018;
81;1;0;"106,09";"2.616,85";DELLE VIGNE TOMMASO S.R.L.;Z1D1D6632F;SALDO Fatt.n. 737/02  del 31/08/2017 FERRAMENTA;19-01-2018;170112;0;53;1;Spese correnti;3;Acquisto di beni e servizi;1;Acquisto di beni;2;Altri beni di consumo;999;Altri beni e materiali di consumo n.a.c.;19-01-2018;
81;2;0;"2.510,76";"2.616,85";DITTA CAMPITELLI DOMENICO;Z1D1D6632F;SALDO Fatt.n. 1/PA  del 18/10/2017 RIPARAZIONI VARIE;19-01-2018;170112;0;53;1;Spese correnti;3;Acquisto di beni e servizi;1;Acquisto di beni;2;Altri beni di consumo;999;Altri beni e materiali di consumo n.a.c.;19-01-2018;
82;1;0;"2.025,20";"2.025,20";SAVINO FORTUNATO di SAVINO PALMA;Z331ECB953;SALDO Fatt.n. 216  del 30/06/2017 SEGNALETICA STRADALE;19-01-2018;170114;0;102;1;Spese correnti;3;Acquisto di beni e servizi;1;Acquisto di beni;2;Altri beni di consumo;999;Altri beni e materiali di consumo n.a.c.;19-01-2018;
83;1;0;"3.500,00";"3.500,00";PRO LOCO; ;LIQUIDAZIONE CONTRIBUTO ALLA PRO LOCO DI ROCCA SAN;19-01-2018;180440;0;178;1;Spese correnti;4;Trasferimenti correnti;1;Trasferimenti correnti a Amministrazioni Pubbliche;2;Trasferimenti correnti a Amministrazioni Locali;999;Trasferimenti correnti a altre Amministrazioni Locali n.a.c.;19-01-2018;
84;1;0;"5.442,37";"5.442,37";LABOR  SOC. COOP. A R.L.;6047133C01;SALDO Fatt.n. 166/PA  del 31/10/2017 SERVIZIO REFEZIONE SCOLASTICA_OTTOBRE 2017_;19-01-2018;140444;0;69;1;Spese correnti;3;Acquisto di beni e servizi;2;Acquisto di servizi;15;Contratti di servizio pubblico;6;Contratti di servizio per le mense scolastiche;19-01-2018;
85;1;0;"117,12";"117,12";A.C.I.;Z091CDD64A;SALDO Fatt.n. 0000027878  del 20/10/2017 CONSULTAZIONE VISURE BANCA DATI PRA - 3^ TRIMESTRE 2017;19-01-2018;130132;0;64;1;Spese correnti;3;Acquisto di beni e servizi;2;Acquisto di servizi;13;Servizi ausiliari per il funzionamento dell'ente;999;Altri servizi ausiliari n.a.c.;19-01-2018;
86;1;0;"1.830,00";"1.830,00";PEG SERVIZI SRL;Z381E7504A;SALDO Fatt.n. FATTPA 29_17  del 06/12/2017 APPARECCHIATURE DI CONTROLLO DEL FLUSSO VEICOLARE DA 14 SETTEMBRE AL 23 NOVEMBRE 2017;19-01-2018;130138;0;91;1;Spese correnti;3;Acquisto di beni e servizi;2;Acquisto di servizi;7;Utilizzo di beni di terzi;8;Noleggi di impianti e macchinari;19-01-2018;
87;1;0;"1.952,93";"1.952,93";POSTE ITALIANE S.P.A.;Z7B14AEE33;SALDO Fatt.n. 8717241579  del 31/08/2017 CORRISPONDENZE AFFRANCATE NEL MESE DI GIUGNO 2017;19-01-2018;110260;0;135;1;Spese correnti;3;Acquisto di beni e servizi;2;Acquisto di servizi;16;Servizi amministrativi;2;Spese postali;19-01-2018;
88;1;0;"8.710,80";"8.710,80";EDILIZIA DI BIASE S.R.L.;Z8D1EE7248;SALDO Fatt.n. 9  del 25/07/2017 LAVORI DI MANUTENZIONE STRADA COMUNALE NOVELLA-SANTA CALCAGNA;19-01-2018;210238;0;114;2;Spese in conto capitale;2;Investimenti fissi lordi e acquisto di terreni;1;Beni materiali;9;Beni immobili;12;Infrastrutture stradali;19-01-2018;
89;1;0;"965,83";"965,83";BLUE LINE SOC. COOP. SOCIALE;X0919A7161;SALDO Fatt.n. 216  del 31/07/2017 SERVIZIO PULIZIA PALAZZO COMUNALE DI LUGLIO 2017;19-01-2018;110256;0;143;1;Spese correnti;3;Acquisto di beni e servizi;2;Acquisto di servizi;13;Servizi ausiliari per il funzionamento dell'ente;2;Servizi di pulizia e lavanderia;19-01-2018;
90;1;0;"50.000,00";"50.000,00";EURORESTAURI S.R.L.;68565289E4;ACCONTO Fatt.n. FATTPA 1_18  del 11/01/2018 COMPLETAMENTO MESSA IN SICUREZZA EDIFICIO SCOLASTICO CAPOLUOGO;19-01-2018;240240;0;178;2;Spese in conto capitale;2;Investimenti fissi lordi e acquisto di terreni;1;Beni materiali;9;Beni immobili;3;Fabbricati ad uso scolastico;19-01-2018;
91;1;0;"350,00";"350,00";MEDIASS S.P.A.;Z92220243B;LIQUIDAZIONE POLIZZA A MISSIMA ASSICURAZIONI (EX CARIGE ASSICURAZIONI) PER INCENDIO E FURTO MUSEO CIVICO.;29-01-2018;110602;0;16;1;Spese correnti;10;Altre spese correnti;4;Premi di assicurazione;1;Premi di assicurazione contro i danni;2;Premi di assicurazione su beni immobili;29-01-2018;
92;1;0;"23.152,00";"23.152,00";COMUNE DI FOSSACESIA; ;SPESA PER SERVIZI SOCIALI NOVEMBRE-DICEMBRE 2017;31-01-2018;161546;0;135;1;Spese correnti;4;Trasferimenti correnti;1;Trasferimenti correnti a Amministrazioni Pubbliche;2;Trasferimenti correnti a Amministrazioni Locali;5;Trasferimenti correnti a Unioni di Comuni;31-01-2018;
93;1;0;"2.668,75";"2.668,75";GIULIANO DOMENICO;Z071D66519;SALDO Fatt.n. FATTPA 5_17  del 30/06/2017 INTERVENTI STRAORDINARI DI RIMOZIONE NEVE GENNAIO 2017;01-02-2018;270116;0;49;2;Spese in conto capitale;2;Investimenti fissi lordi e acquisto di terreni;1;Beni materiali;99;Altri beni materiali;999;Altri beni materiali diversi;01-02-2018;
94;1;0;"1.510,62";"1.510,62";A.S. ELETTROMECCANICA DI SGRIGNOLI ALESSANDRO;Z8C1D664AB;SALDO Fatt.n. 14/E  del 19/06/2017 ELETTROPOMPA SOMMERSA;01-02-2018;170112;0;50;1;Spese correnti;3;Acquisto di beni e servizi;1;Acquisto di beni;2;Altri beni di consumo;999;Altri beni e materiali di consumo n.a.c.;01-02-2018;
95;1;0;"1.057,27";"4.588,99";RIECO SPA;3475364917;SALDO Fatt.n. 20170400  del 31/05/2017 ALLEGATO "D" AL DISCIPLINARE MESE DI MAGGIO 2017;01-02-2018;160944;0;92;1;Spese correnti;3;Acquisto di beni e servizi;2;Acquisto di servizi;15;Contratti di servizio pubblico;5;Contratti di servizio per il conferimento in discarica dei rifiuti;01-02-2018;
95;2;0;"1.709,62";"4.588,99";RIECO SPA;3475364917;SALDO Fatt.n. 20170482  del 30/06/2017 ALLEGATO "D" DISCIPLINARE DI GIUGNO 2017;01-02-2018;160944;0;92;1;Spese correnti;3;Acquisto di beni e servizi;2;Acquisto di servizi;15;Contratti di servizio pubblico;5;Contratti di servizio per il conferimento in discarica dei rifiuti;01-02-2018;
95;3;0;"1.822,10";"4.588,99";RIECO SPA; ;SALDO Fatt.n. 170604/01  del 31/07/2017 DISCIPLINARE ALL."D" MESE DI LUGLIO 2017;01-02-2018;160944;0;92;1;Spese correnti;3;Acquisto di beni e servizi;2;Acquisto di servizi;15;Contratti di servizio pubblico;5;Contratti di servizio per il conferimento in discarica dei rifiuti;01-02-2018;
96;1;0;"18.451,06";"36.902,12";RIECO SPA;3475364917;SALDO Fatt.n. 20170354  del 31/05/2017 SMALTIMENTO DEI RIFIUTI URBANI DI MAGGIO 2017;01-02-2018;160948;0;87;1;Spese correnti;3;Acquisto di beni e servizi;2;Acquisto di servizi;15;Contratti di servizio pubblico;5;Contratti di servizio per il conferimento in discarica dei rifiuti;01-02-2018;
96;2;0;"18.451,06";"36.902,12";RIECO SPA;3475364917;SALDO Fatt.n. 20170438  del 30/06/2017 RACCOLTA E TRASPORTO RIFIUTI SOLIDI URBANI DI GIUGNO 2017;01-02-2018;160948;0;87;1;Spese correnti;3;Acquisto di beni e servizi;2;Acquisto di servizi;15;Contratti di servizio pubblico;5;Contratti di servizio per il conferimento in discarica dei rifiuti;01-02-2018;
97;1;0;"518,72";"3.313,24";LA RONDINE;X16109ECEF;SALDO Fatt.n. 32/01  del 12/07/2017 GESTIONE SERVIZIO DI VIGILANZA SUGLI SCUOLABUS - MESE DI DICEMBRE 2016;01-02-2018;140440;0;131;1;Spese correnti;3;Acquisto di beni e servizi;2;Acquisto di servizi;15;Contratti di servizio pubblico;999;Altre spese per contratti di servizio pubblico;01-02-2018;
97;2;0;"808,70";"3.313,24";LA RONDINE;X16109ECEF;SALDO Fatt.n. 33/01  del 12/07/2017 GESTIONE SERVIZIO DI VIGILANZA SUGLI SCUOLABUS - MESE DI GENNAIO 2017;01-02-2018;140440;0;131;1;Spese correnti;3;Acquisto di beni e servizi;2;Acquisto di servizi;15;Contratti di servizio pubblico;999;Altre spese per contratti di servizio pubblico;01-02-2018;
97;3;0;"1.985,82";"3.313,24";LA RONDINE;X16109ECEF;SALDO Fatt.n. 34/01  del 12/07/2017 GESTIONE SERVIZIO DI VIGILANZA SUGLI SCUOLABUS - MESE DI FEBBRAIO 2017;01-02-2018;140440;0;131;1;Spese correnti;3;Acquisto di beni e servizi;2;Acquisto di servizi;15;Contratti di servizio pubblico;999;Altre spese per contratti di servizio pubblico;01-02-2018;
98;1;0;"9.801,00";"9.801,00";IEZZI TRAVEL SRL;6770169831;SALDO Fatt.n. FATTPA 63_17  del 31/10/2017 TRASPORTO SCOLASTICO DI OTTOBRE 2017;01-02-2018;140448;0;223;1;Spese correnti;3;Acquisto di beni e servizi;2;Acquisto di servizi;15;Contratti di servizio pubblico;2;Contratti di servizio di trasporto scolastico;01-02-2018;
99;1;0;"400,00";"400,00";COMANDO VIGILI DEL FUOCO CHIETI; ;VALUTAZIONE PROGETTO ATTIVITA' 67.2.B E 65.1.B;01-02-2018;140140;0;214;1;Spese correnti;3;Acquisto di beni e servizi;1;Acquisto di beni;2;Altri beni di consumo;999;Altri beni e materiali di consumo n.a.c.;01-02-2018;
103;1;0;"1.800,00";"1.800,00";COMUNE DI LANCIANO; ;SPESE COMMISSIONE ELETTORALE CIRCONDARIALE 2016 ACCONTO;01-02-2018;110242;0;215;1;Spese correnti;4;Trasferimenti correnti;1;Trasferimenti correnti a Amministrazioni Pubbliche;2;Trasferimenti correnti a Amministrazioni Locali;3;Trasferimenti correnti a Comuni;01-02-2018;
104;1;0;"342,64";"342,64";COMUNE DI LANCIANO; ;SPESE COMMISSIONE ELETTORALE CIRCONDARIALE 2016 SALDO;01-02-2018;110456;0;26;1;Spese correnti;3;Acquisto di beni e servizi;2;Acquisto di servizi;99;Altri servizi;4;Altre spese per consultazioni elettorali dell'ente;01-02-2018;
105;1;0;"980,00";"980,00";CLIMATERM SRL;Z341D66285;ACCONTO Fatt.n. 8  del 30/06/2017 MANUTENZIONE ORDINARIA CALDAIE;01-02-2018;170112;0;97;1;Spese correnti;3;Acquisto di beni e servizi;1;Acquisto di beni;2;Altri beni di consumo;999;Altri beni e materiali di consumo n.a.c.;01-02-2018;
106;1;0;"118,00";"118,00";CLIMATERM SRL;Z8C1D664AB;SALDO Fatt.n. 8  del 30/06/2017 MANUTENZIONE ORDINARIA CALDAIE;01-02-2018;140140;0;51;1;Spese correnti;3;Acquisto di beni e servizi;1;Acquisto di beni;2;Altri beni di consumo;999;Altri beni e materiali di consumo n.a.c.;01-02-2018;
107;1;0;"1.443,75";"1.443,75";BLUE LINE SOC. COOP. SOCIALE;ZA81DEEBE0;SALDO Fatt.n. 131  del 30/04/2017 SERVIZIO BORSA LAVORO APRILE 2017;01-02-2018;161548;0;100;1;Spese correnti;3;Acquisto di beni e servizi;2;Acquisto di servizi;15;Contratti di servizio pubblico;999;Altre spese per contratti di servizio pubblico;01-02-2018;
108;1;0;"1.443,75";"1.443,75";BLUE LINE SOC. COOP. SOCIALE;ZA81DEEBE0;SALDO Fatt.n. 178  del 30/06/2017 SERVIZIO DI PULIZIA EDIFICI COMUNALI GIUGNO 2017;01-02-2018;161548;0;100;1;Spese correnti;3;Acquisto di beni e servizi;2;Acquisto di servizi;15;Contratti di servizio pubblico;999;Altre spese per contratti di servizio pubblico;01-02-2018;
109;1;0;"1.443,75";"1.443,75";BLUE LINE SOC. COOP. SOCIALE;ZA81DEEBE0;SALDO Fatt.n. 241  del 31/08/2017 BORSA LAVORO DI AGOSTO 2017;01-02-2018;161548;0;100;1;Spese correnti;3;Acquisto di beni e servizi;2;Acquisto di servizi;15;Contratti di servizio pubblico;999;Altre spese per contratti di servizio pubblico;01-02-2018;
110;1;0;"600,00";"600,00";IT CREATIVE DI D'ANGELO FRANCESCO;Z6D1D90C9A;SALDO Fatt.n. 14/A  del 26/09/2017 ASSISTENZA POSTAZIONI INFORMATICHE E SITO ISTITUZIONALE SETTEMBRE 2017;01-02-2018;110248;0;122;1;Spese correnti;3;Acquisto di beni e servizi;2;Acquisto di servizi;19;Servizi informatici e di telecomunicazioni;10;Servizi di consulenza e prestazioni professionali ICT;01-02-2018;
111;1;0;"5.368,00";"5.368,00";HALLEY INFORMATICA S.R.L.;ZF81FF9F1C;SALDO Fatt.n. 11566/8/10  del 29/09/2017 SERVIZIO FULL SERVICE ANNO 2017;01-02-2018;110640;0;136;1;Spese correnti;3;Acquisto di beni e servizi;2;Acquisto di servizi;8;Leasing operativo;2;Leasing operativo di attrezzature e macchinari;01-02-2018;
112;1;0;"3.648,41";"283.108,41";TENAGLIA SRL;571380905A;ACCONTO Fatt.n. 57/04  del 09/09/2016 LAVORI;05-02-2018;261236;0;45;2;Spese in conto capitale;2;Investimenti fissi lordi e acquisto di terreni;1;Beni materiali;9;Beni immobili;999;Beni immobili n.a.c.;05-02-2018;
112;2;0;"279.460,00";"283.108,41";TENAGLIA SRL;571380905A;ACCONTO Fatt.n. 56/04  del 09/09/2016 LAVORI;05-02-2018;261236;0;45;2;Spese in conto capitale;2;Investimenti fissi lordi e acquisto di terreni;1;Beni materiali;9;Beni immobili;999;Beni immobili n.a.c.;05-02-2018;
113;1;0;"3.980,86";"3.980,86";STUDIO BONA;Z211E55EE0;SALDO Fatt.n. 14/PA  del 08/11/2017 CONSULENZA UFFICIO TECNICO;05-02-2018;110336;0;82;1;Spese correnti;3;Acquisto di beni e servizi;2;Acquisto di servizi;10;Consulenze;1;"Incarichi libero professionali di studi, ricerca e consulenza";05-02-2018;
114;1;0;"1.800,00";"1.800,00";COMUNE DI LANCIANO; ;SPESE PER LA COMMISSIONE ELETTORALE CIRCONDARIALE 2017;09-02-2018;110242;0;189;1;Spese correnti;4;Trasferimenti correnti;1;Trasferimenti correnti a Amministrazioni Pubbliche;2;Trasferimenti correnti a Amministrazioni Locali;3;Trasferimenti correnti a Comuni;09-02-2018;
115;1;0;"358,57";"358,57";COMUNE DI LANCIANO; ;SALDO SPESE COMMISSIONE ELETTORALE CIRCONDARIALE ANNO 2017;09-02-2018;110456;0;29;1;Spese correnti;3;Acquisto di beni e servizi;2;Acquisto di servizi;99;Altri servizi;4;Altre spese per consultazioni elettorali dell'ente;09-02-2018;
116;1;0;"800,00";"800,00";ASSOCIAZIONE ENTI LOCALI; ;Patto territoriale Sangro-Aventino-Partecipazione all'associazione tra Enti Locali. Quota contributo annuale e quota turismo 2014;09-02-2018;180246;0;514;1;Spese correnti;4;Trasferimenti correnti;1;Trasferimenti correnti a Amministrazioni Pubbliche;2;Trasferimenti correnti a Amministrazioni Locali;999;Trasferimenti correnti a altre Amministrazioni Locali n.a.c.;09-02-2018;
117;1;0;"752,70";"752,70";ASSOCIAZIONE ENTI LOCALI; ;Patto territoriale Sangro-Aventino-Partecipazione all'associazione tra Enti Locali. Diritti SUAP 2014;09-02-2018;180246;0;515;1;Spese correnti;4;Trasferimenti correnti;1;Trasferimenti correnti a Amministrazioni Pubbliche;2;Trasferimenti correnti a Amministrazioni Locali;999;Trasferimenti correnti a altre Amministrazioni Locali n.a.c.;09-02-2018;
118;1;0;"2.128,82";"2.128,82";ASSOCIAZIONE ENTI LOCALI; ;Patto territoriale Sangro-Aventino-Partecipazione all'associazione tra Enti Locali E DIRITTI SUAP 2015;09-02-2018;180246;0;266;1;Spese correnti;4;Trasferimenti correnti;1;Trasferimenti correnti a Amministrazioni Pubbliche;2;Trasferimenti correnti a Amministrazioni Locali;999;Trasferimenti correnti a altre Amministrazioni Locali n.a.c.;09-02-2018;
119;1;0;"1.153,10";"1.153,10";ASSOCIAZIONE ENTI LOCALI; ;Patto territoriale Sangro-Aventino-Partecipazione all'associazione tra Enti Locali e diritti SUAP 2016;09-02-2018;180246;0;266;1;Spese correnti;4;Trasferimenti correnti;1;Trasferimenti correnti a Amministrazioni Pubbliche;2;Trasferimenti correnti a Amministrazioni Locali;999;Trasferimenti correnti a altre Amministrazioni Locali n.a.c.;09-02-2018;
120;1;0;"800,00";"800,00";ASSOCIAZIONE ENTI LOCALI; ;Patto territoriale Sangro-Aventino-Partecipazione all'associazione tra Enti Locali 2017;09-02-2018;180246;0;266;1;Spese correnti;4;Trasferimenti correnti;1;Trasferimenti correnti a Amministrazioni Pubbliche;2;Trasferimenti correnti a Amministrazioni Locali;999;Trasferimenti correnti a altre Amministrazioni Locali n.a.c.;09-02-2018;
130;1;0;"134,20";"134,20";FIND SERVICE GENIOLA S.R.L.;ZA61D664D0;SALDO Fatt.n. 8/001  del 30/08/2017 NOLO PIATTAFORMA AEREA;14-02-2018;170144;0;95;1;Spese correnti;3;Acquisto di beni e servizi;2;Acquisto di servizi;7;Utilizzo di beni di terzi;8;Noleggi di impianti e macchinari;14-02-2018;
131;1;0;"66,76";"136,84";EUROLUX S.R.L.;Z751D6645A;SALDO Fatt.n. 17/1072  del 31/08/2017 MATERIALE ELETTRICO;14-02-2018;170224;0;54;1;Spese correnti;3;Acquisto di beni e servizi;1;Acquisto di beni;2;Altri beni di consumo;999;Altri beni e materiali di consumo n.a.c.;14-02-2018;
131;2;0;"70,08";"136,84";EUROLUX S.R.L.;Z751D6645A;SALDO Fatt.n. 17/1188  del 30/09/2017 MATERIALE ELETTRICO;14-02-2018;170224;0;54;1;Spese correnti;3;Acquisto di beni e servizi;1;Acquisto di beni;2;Altri beni di consumo;999;Altri beni e materiali di consumo n.a.c.;14-02-2018;
132;1;0;"201,18";"368,21";DI BIASE D. & C. S.N.C.;Z8C1D664AB;SALDO Fatt.n. 17/PA  del 31/08/2017 MATERIALE IDROTERMOSANITARIO;14-02-2018;140210;0;52;1;Spese correnti;3;Acquisto di beni e servizi;1;Acquisto di beni;2;Altri beni di consumo;999;Altri beni e materiali di consumo n.a.c.;14-02-2018;
132;2;0;"167,03";"368,21";NATALE FLORINDO;Z8C1D664AB;SALDO Fatt.n. FATTPA 9_17  del 20/09/2017 PIANTE E TERRICCIO;14-02-2018;140210;0;52;1;Spese correnti;3;Acquisto di beni e servizi;1;Acquisto di beni;2;Altri beni di consumo;999;Altri beni e materiali di consumo n.a.c.;14-02-2018;
133;1;0;"719,80";"719,80";AMBIQ S.R.L.;Z0D1D662CB;SALDO Fatt.n. 376/2017  del 31/08/2017 DERATTIZZAZIONE DI AGOSTO 2017;14-02-2018;161232;0;85;1;Spese correnti;3;Acquisto di beni e servizi;2;Acquisto di servizi;15;Contratti di servizio pubblico;999;Altre spese per contratti di servizio pubblico;14-02-2018;
134;1;0;"79,51";"286,52";E.N.E.L. SERVIZIO ELETTRICO S.P.A.;X37139C8F1;SALDO Fatt.n. 691065500330513  del 10/09/2017 ENERGIA ELETTRICA C.DA VALLEVO' SN;14-02-2018;110636;0;95;1;Spese correnti;3;Acquisto di beni e servizi;2;Acquisto di servizi;5;Utenze e canoni;4;Energia elettrica;14-02-2018;
134;2;0;"96,69";"286,52";E.N.E.L. SERVIZIO ELETTRICO S.P.A.;X37139C8F1;SALDO Fatt.n. 691065313504012  del 10/09/2017 ENERGIA ELETTRICA C.DA PERAZZA 38;14-02-2018;110636;0;95;1;Spese correnti;3;Acquisto di beni e servizi;2;Acquisto di servizi;5;Utenze e canoni;4;Energia elettrica;14-02-2018;
134;3;0;"110,32";"286,52";E.N.E.L. SERVIZIO ELETTRICO S.P.A.;X37139C8F1;SALDO Fatt.n. 691065500330512  del 10/07/2017 ENERGIA ELETTRICA C.DA VALLEVO' SN;14-02-2018;110636;0;95;1;Spese correnti;3;Acquisto di beni e servizi;2;Acquisto di servizi;5;Utenze e canoni;4;Energia elettrica;14-02-2018;
135;1;0;"178,21";"430,37";E.N.E.L. SERVIZIO ELETTRICO S.P.A.;X37139C8F1;SALDO Fatt.n. 691065110702513  del 10/09/2017 ENERGIA ELETTRICA - OROLOGIO TORRE CIVICA;14-02-2018;110638;0;48;1;Spese correnti;3;Acquisto di beni e servizi;2;Acquisto di servizi;5;Utenze e canoni;4;Energia elettrica;14-02-2018;
135;2;0;"252,16";"430,37";E.N.E.L. SERVIZIO ELETTRICO S.P.A.;X37139C8F1;SALDO Fatt.n. 691065110702512  del 10/07/2017 ENERGIA ELETTRICA OROLOGIO TORRE CIVICA;14-02-2018;110638;0;48;1;Spese correnti;3;Acquisto di beni e servizi;2;Acquisto di servizi;5;Utenze e canoni;4;Energia elettrica;14-02-2018;
136;1;0;"65,93";"131,86";E.N.E.L. SERVIZIO ELETTRICO S.P.A.;X37139C8F1;SALDO Fatt.n. 691065380301015  del 10/07/2017 ENERGIA ELETTRICA C.DA PUNCICHITTI;14-02-2018;140246;0;98;1;Spese correnti;3;Acquisto di beni e servizi;2;Acquisto di servizi;5;Utenze e canoni;4;Energia elettrica;14-02-2018;
136;2;0;"65,93";"131,86";E.N.E.L. SERVIZIO ELETTRICO S.P.A.;X37139C8F1;SALDO Fatt.n. 691065380301016  del 10/09/2017 ENERGIA ELETTRICA - SCUOLA ELEMENTARE C.DA PUNCICHITTI;14-02-2018;140246;0;98;1;Spese correnti;3;Acquisto di beni e servizi;2;Acquisto di servizi;5;Utenze e canoni;4;Energia elettrica;14-02-2018;
137;1;0;"-138,44";"963,05";E.N.E.L. SERVIZIO ELETTRICO S.P.A.;X37139C8F1;SALDO Fatt.n. 691065500518519  del 07/05/2017 ENERGIA ELETTRICA RIMBORSO MANCATO FUNZIONAMENTO;14-02-2018;160810;0;101;1;Spese correnti;3;Acquisto di beni e servizi;2;Acquisto di servizi;5;Utenze e canoni;4;Energia elettrica;14-02-2018;
137;2;0;"322,54";"963,05";E.N.E.L. SERVIZIO ELETTRICO S.P.A.;X37139C8F1;SALDO Fatt.n. 691065500518512  del 10/09/2017 ENERGIA ELETTRICA  C.DA VALEVO' SN;14-02-2018;160810;0;101;1;Spese correnti;3;Acquisto di beni e servizi;2;Acquisto di servizi;5;Utenze e canoni;4;Energia elettrica;14-02-2018;
137;3;0;"384,40";"963,05";E.N.E.L. SERVIZIO ELETTRICO S.P.A.;X37139C8F1;SALDO Fatt.n. 691065280311513  del 10/09/2017 ENERGIA ELETTRICA VIA OCCIDENTALE SN;14-02-2018;160810;0;101;1;Spese correnti;3;Acquisto di beni e servizi;2;Acquisto di servizi;5;Utenze e canoni;4;Energia elettrica;14-02-2018;
137;4;0;"394,55";"963,05";E.N.E.L. SERVIZIO ELETTRICO S.P.A.;X37139C8F1;SALDO Fatt.n. 691065500518511  del 10/07/2017 ENERGIA ELETTRICA C.DA VALLEVO';14-02-2018;160810;0;101;1;Spese correnti;3;Acquisto di beni e servizi;2;Acquisto di servizi;5;Utenze e canoni;4;Energia elettrica;14-02-2018;
138;1;0;"42,58";"115,71";E.N.E.L. SERVIZIO ELETTRICO S.P.A.;X37139C8F1;SALDO Fatt.n. 691065410012022  del 10/07/2017 ENERGIA ELETTRICA - CASOTTO C.DA S.CALCAGNA;14-02-2018;180530;0;107;1;Spese correnti;3;Acquisto di beni e servizi;2;Acquisto di servizi;5;Utenze e canoni;4;Energia elettrica;14-02-2018;
138;2;0;"73,13";"115,71";E.N.E.L. SERVIZIO ELETTRICO S.P.A.;X37139C8F1;SALDO Fatt.n. 691065410012023  del 10/09/2017 ENERGIA ELETTRICA - CASOTTO C.DA S.CALCAGNA;14-02-2018;180530;0;107;1;Spese correnti;3;Acquisto di beni e servizi;2;Acquisto di servizi;5;Utenze e canoni;4;Energia elettrica;14-02-2018;
139;1;0;"161,97";"4.142,64";E.N.E.L. ENERGIA S.P.A.;X37139C8F1;SALDO Fatt.n. 004801096557  del 08/08/2017 ENERGIA ELETTRICA VIA OCCIDENTALE 31;14-02-2018;180530;0;107;1;Spese correnti;3;Acquisto di beni e servizi;2;Acquisto di servizi;5;Utenze e canoni;4;Energia elettrica;14-02-2018;
139;2;0;"162,49";"4.142,64";E.N.E.L. ENERGIA S.P.A.;X37139C8F1;SALDO Fatt.n. 004801386801  del 08/10/2017 ENERGIA ELETTRICA VIA S.GIACOMO 12;14-02-2018;180530;0;107;1;Spese correnti;3;Acquisto di beni e servizi;2;Acquisto di servizi;5;Utenze e canoni;4;Energia elettrica;14-02-2018;
139;3;0;"163,61";"4.142,64";E.N.E.L. ENERGIA S.P.A.;X37139C8F1;SALDO Fatt.n. 004801386803  del 08/10/2017 ENERGIA ELETTRICA VIA OCCIDENTALE 31;14-02-2018;180530;0;107;1;Spese correnti;3;Acquisto di beni e servizi;2;Acquisto di servizi;5;Utenze e canoni;4;Energia elettrica;14-02-2018;
139;4;0;"198,58";"4.142,64";E.N.E.L. ENERGIA S.P.A.;X37139C8F1;SALDO Fatt.n. 004801406162  del 12/10/2017 ENERGIA ELETTRICA  VIA VALLEVO' SNC;14-02-2018;180530;0;107;1;Spese correnti;3;Acquisto di beni e servizi;2;Acquisto di servizi;5;Utenze e canoni;4;Energia elettrica;14-02-2018;
139;5;0;"203,35";"4.142,64";E.N.E.L. ENERGIA S.P.A.;X37139C8F1;SALDO Fatt.n. 004801096555  del 08/08/2017 ENERGIA ELETTRICA VIA SAN GIACOMO 12;14-02-2018;180530;0;107;1;Spese correnti;3;Acquisto di beni e servizi;2;Acquisto di servizi;5;Utenze e canoni;4;Energia elettrica;14-02-2018;
139;6;0;"373,69";"4.142,64";E.N.E.L. ENERGIA S.P.A.;X37139C8F1;SALDO Fatt.n. 004801121905  del 12/08/2017 ENERGIA ELETTRICA VIA VALLEVO' SNC;14-02-2018;180530;0;107;1;Spese correnti;3;Acquisto di beni e servizi;2;Acquisto di servizi;5;Utenze e canoni;4;Energia elettrica;14-02-2018;
139;7;0;"379,66";"4.142,64";E.N.E.L. ENERGIA S.P.A.;X37139C8F1;SALDO Fatt.n. 004801096556  del 08/08/2017 ENERGIA ELETTRICA VIA PIANE FAVARO 36;14-02-2018;180530;0;107;1;Spese correnti;3;Acquisto di beni e servizi;2;Acquisto di servizi;5;Utenze e canoni;4;Energia elettrica;14-02-2018;
139;8;0;"494,38";"4.142,64";E.N.E.L. ENERGIA S.P.A.;X37139C8F1;SALDO Fatt.n. 004801381846  del 08/10/2017 ENERGIA ELETTRICA VIA FOCE SNC;14-02-2018;180530;0;107;1;Spese correnti;3;Acquisto di beni e servizi;2;Acquisto di servizi;5;Utenze e canoni;4;Energia elettrica;14-02-2018;
139;9;0;"578,17";"4.142,64";E.N.E.L. ENERGIA S.P.A.;X37139C8F1;SALDO Fatt.n. 004801089236  del 08/08/2017 ENERGIA ELETTRICA VIA FOCE SNC;14-02-2018;180530;0;107;1;Spese correnti;3;Acquisto di beni e servizi;2;Acquisto di servizi;5;Utenze e canoni;4;Energia elettrica;14-02-2018;
139;10;0;"703,45";"4.142,64";E.N.E.L. ENERGIA S.P.A.;X37139C8F1;SALDO Fatt.n. 004801239292  del 08/09/2017 ENERGIA ELETTRICA - VIA FOCE SNC;14-02-2018;180530;0;107;1;Spese correnti;3;Acquisto di beni e servizi;2;Acquisto di servizi;5;Utenze e canoni;4;Energia elettrica;14-02-2018;
139;11;0;"723,29";"4.142,64";E.N.E.L. ENERGIA S.P.A.;X37139C8F1;SALDO Fatt.n. 004801386802  del 08/10/2017 ENERGIA ELETTRICA VIA PIANE FAVARO 36;14-02-2018;180530;0;107;1;Spese correnti;3;Acquisto di beni e servizi;2;Acquisto di servizi;5;Utenze e canoni;4;Energia elettrica;14-02-2018;
140;1;0;"74,01";"350,05";E.N.E.L. ENERGIA S.P.A.;X37139C8F1;SALDO Fatt.n. 004801096558  del 08/08/2017 ENERGIA ELETTRICA VICOLO PORTICO 19;14-02-2018;110636;0;95;1;Spese correnti;3;Acquisto di beni e servizi;2;Acquisto di servizi;5;Utenze e canoni;4;Energia elettrica;14-02-2018;
140;2;0;"74,19";"350,05";E.N.E.L. ENERGIA S.P.A.;X37139C8F1;SALDO Fatt.n. 004801386804  del 08/10/2017 ENERGIA ELETTRICA VICOLO PORTICO 19;14-02-2018;110636;0;95;1;Spese correnti;3;Acquisto di beni e servizi;2;Acquisto di servizi;5;Utenze e canoni;4;Energia elettrica;14-02-2018;
140;3;0;"88,56";"350,05";E.N.E.L. ENERGIA S.P.A.;X37139C8F1;SALDO Fatt.n. 004801379640  del 08/10/2017 ENERGIA ELETTRICA VIA SCALZINO 20;14-02-2018;110636;0;95;1;Spese correnti;3;Acquisto di beni e servizi;2;Acquisto di servizi;5;Utenze e canoni;4;Energia elettrica;14-02-2018;
140;4;0;"113,29";"350,05";E.N.E.L. ENERGIA S.P.A.;X37139C8F1;SALDO Fatt.n. 004801092666  del 08/08/2017 ENERGIA ELETTRICA VIA SCALZINO 20;14-02-2018;110636;0;95;1;Spese correnti;3;Acquisto di beni e servizi;2;Acquisto di servizi;5;Utenze e canoni;4;Energia elettrica;14-02-2018;
141;1;0;"159,75";"1.226,48";E.N.E.L. ENERGIA S.P.A.;X31739C8F1;SALDO Fatt.n. 004801096554  del 08/08/2017 ENERGIA ELETTRICA VIA CODACCHIE SNC;14-02-2018;161320;0;102;1;Spese correnti;3;Acquisto di beni e servizi;2;Acquisto di servizi;5;Utenze e canoni;4;Energia elettrica;14-02-2018;
141;2;0;"177,38";"1.226,48";E.N.E.L. ENERGIA S.P.A.;X31739C8F1;SALDO Fatt.n. 004801386800  del 08/10/2017 ENERGIA ELETTRICA VIA CODACCHIE SNC;14-02-2018;161320;0;102;1;Spese correnti;3;Acquisto di beni e servizi;2;Acquisto di servizi;5;Utenze e canoni;4;Energia elettrica;14-02-2018;
141;3;0;"438,68";"1.226,48";E.N.E.L. ENERGIA S.P.A.;X31739C8F1;SALDO Fatt.n. 004801382168  del 08/10/2017 ENERGIA ELETTRICA - imp. polivalente c.da s.calcagna;14-02-2018;161320;0;102;1;Spese correnti;3;Acquisto di beni e servizi;2;Acquisto di servizi;5;Utenze e canoni;4;Energia elettrica;14-02-2018;
141;4;0;"450,67";"1.226,48";E.N.E.L. ENERGIA S.P.A.;X31739C8F1;SALDO Fatt.n. 004801089243  del 08/08/2017 ENERGIA ELETTRICA - imp. polivalente c.da s.calcagna;14-02-2018;161320;0;102;1;Spese correnti;3;Acquisto di beni e servizi;2;Acquisto di servizi;5;Utenze e canoni;4;Energia elettrica;14-02-2018;
142;1;0;"523,27";"523,27";E.N.E.L. ENERGIA S.P.A.;X37139C8F1;SALDO Fatt.n. 004801089242  del 08/08/2017 ENERGIA ELETTRICA VIALE R. PAOLUCCI SNC;14-02-2018;140246;0;98;1;Spese correnti;3;Acquisto di beni e servizi;2;Acquisto di servizi;5;Utenze e canoni;4;Energia elettrica;14-02-2018;
143;1;0;"412,08";"831,83";E.N.E.L. ENERGIA S.P.A.;X37139C8F1;SALDO Fatt.n. 004801125467  del 13/08/2017 ENERGIA ELETTRICA PIAZZA DEGLI EROI N. 14;14-02-2018;110834;0;97;1;Spese correnti;3;Acquisto di beni e servizi;2;Acquisto di servizi;5;Utenze e canoni;4;Energia elettrica;14-02-2018;
143;2;0;"419,75";"831,83";E.N.E.L. ENERGIA S.P.A.;X37139C8F1;SALDO Fatt.n. 004801379634  del 08/10/2017 ENERGIA ELETTRICA PIAZZA DEGLI EROI N 14;14-02-2018;110834;0;97;1;Spese correnti;3;Acquisto di beni e servizi;2;Acquisto di servizi;5;Utenze e canoni;4;Energia elettrica;14-02-2018;
144;1;0;"99,52";"798,16";E.N.E.L. ENERGIA S.P.A.;X37139C8F1;SALDO Fatt.n. 004801092673  del 08/08/2017 ENERGIA ELETTRICA VIA BATTISTI CESARE SNC;14-02-2018;160810;0;101;1;Spese correnti;3;Acquisto di beni e servizi;2;Acquisto di servizi;5;Utenze e canoni;4;Energia elettrica;14-02-2018;
144;2;0;"99,95";"798,16";E.N.E.L. ENERGIA S.P.A.;X37139C8F1;SALDO Fatt.n. 004801379647  del 08/10/2017 ENERGIA ELETTRICA VIA BATTISTI CESARE SNC;14-02-2018;160810;0;101;1;Spese correnti;3;Acquisto di beni e servizi;2;Acquisto di servizi;5;Utenze e canoni;4;Energia elettrica;14-02-2018;
144;3;0;"101,17";"798,16";E.N.E.L. ENERGIA S.P.A.;X37139C8F1;SALDO Fatt.n. 004801381843  del 08/10/2017 ENERGIA ELETTRICA VIA MAZZINI SNC;14-02-2018;160810;0;101;1;Spese correnti;3;Acquisto di beni e servizi;2;Acquisto di servizi;5;Utenze e canoni;4;Energia elettrica;14-02-2018;
144;4;0;"101,99";"798,16";E.N.E.L. ENERGIA S.P.A.;X37139C8F1;SALDO Fatt.n. 004801089233  del 08/08/2017 ENERGIA ELETTRICA VIA MAZZINI SNC;14-02-2018;160810;0;101;1;Spese correnti;3;Acquisto di beni e servizi;2;Acquisto di servizi;5;Utenze e canoni;4;Energia elettrica;14-02-2018;
144;5;0;"194,13";"798,16";E.N.E.L. ENERGIA S.P.A.;X37139C8F1;SALDO Fatt.n. 004801379644  del 08/10/2017 ENERGIA ELETTRICA VIALE PAOLUCCI R. SNC;14-02-2018;160810;0;101;1;Spese correnti;3;Acquisto di beni e servizi;2;Acquisto di servizi;5;Utenze e canoni;4;Energia elettrica;14-02-2018;
144;6;0;"201,40";"798,16";E.N.E.L. ENERGIA S.P.A.;X37139C8F1;SALDO Fatt.n. 004801092670  del 08/08/2017 ENERGIA ELETTRICA VIALE PAOLUCCI R. SNC;14-02-2018;160810;0;101;1;Spese correnti;3;Acquisto di beni e servizi;2;Acquisto di servizi;5;Utenze e canoni;4;Energia elettrica;14-02-2018;
145;1;0;"46,46";"105,40";E.N.E.L. ENERGIA S.P.A.;X37139C8F1;SALDO Fatt.n. 004801386805  del 08/10/2017 ENERGIA ELETTRICA  VIA MAZZINI;14-02-2018;160646;0;100;1;Spese correnti;3;Acquisto di beni e servizi;2;Acquisto di servizi;5;Utenze e canoni;4;Energia elettrica;14-02-2018;
145;2;0;"58,94";"105,40";E.N.E.L. ENERGIA S.P.A.;X37139C8F1;SALDO Fatt.n. 004801096559  del 08/08/2017 ENERGIA ELETTRICA VIA MAZZINI SNC;14-02-2018;160646;0;100;1;Spese correnti;3;Acquisto di beni e servizi;2;Acquisto di servizi;5;Utenze e canoni;4;Energia elettrica;14-02-2018;
146;1;0;"1.014,51";"29.120,83";CONSORZIO COMPRENSORIALE SMALTIMENTO.ECO.LAN. S.P.A.;ZF01E96446;SALDO Fatt.n. 100920  del 30/09/2017 SPAZZAMENTO RIFIUTI DELLA PULIZIA STRADALE SETTEMBRE 2017;14-02-2018;160918;0;168;1;Spese correnti;3;Acquisto di beni e servizi;2;Acquisto di servizi;15;Contratti di servizio pubblico;4;Contratti di servizio per la raccolta rifiuti;14-02-2018;
146;2;0;"1.407,23";"29.120,83";CONSORZIO COMPRENSORIALE SMALTIMENTO.ECO.LAN. S.P.A.; ;SALDO Fatt.n. 101019  del 31/10/2017 SPAZZAMENTO RIFIUTI DELLA PULIZIA STRADALE OTTOBRE 2017;14-02-2018;160918;0;168;1;Spese correnti;3;Acquisto di beni e servizi;2;Acquisto di servizi;15;Contratti di servizio pubblico;4;Contratti di servizio per la raccolta rifiuti;14-02-2018;
146;3;0;"6.065,57";"29.120,83";CONSORZIO COMPRENSORIALE SMALTIMENTO.ECO.LAN. S.P.A.; ;SALDO Fatt.n. 100969  del 31/10/2017 AVVIO A RECUPERO DEL RIFIUTO DI PROVENIENZA URBANA OTTOBRE 2017;14-02-2018;160918;0;168;1;Spese correnti;3;Acquisto di beni e servizi;2;Acquisto di servizi;15;Contratti di servizio pubblico;4;Contratti di servizio per la raccolta rifiuti;14-02-2018;
146;4;0;"8.525,09";"29.120,83";CONSORZIO COMPRENSORIALE SMALTIMENTO.ECO.LAN. S.P.A.; ;SALDO Fatt.n. 100885  del 30/09/2017 AVVIO A RECUPERO DEL RIFIUTO DI PROVENIENZA URBANA SETTEMBRE 2017;14-02-2018;160918;0;168;1;Spese correnti;3;Acquisto di beni e servizi;2;Acquisto di servizi;15;Contratti di servizio pubblico;4;Contratti di servizio per la raccolta rifiuti;14-02-2018;
146;5;0;"12.108,43";"29.120,83";CONSORZIO COMPRENSORIALE SMALTIMENTO.ECO.LAN. S.P.A.; ;SALDO Fatt.n. 100788  del 31/08/2017 AVVIO A RECUPERO DEL RIFIUTO DI PROVENIENZA URBANA AGOSTO 2017;14-02-2018;160918;0;168;1;Spese correnti;3;Acquisto di beni e servizi;2;Acquisto di servizi;15;Contratti di servizio pubblico;4;Contratti di servizio per la raccolta rifiuti;14-02-2018;
147;1;0;"9.801,00";"9.801,00";IEZZI TRAVEL SRL;6770169831;SALDO Fatt.n. FATTPA 75_17  del 30/11/2017 TRASPORTO SCOLASTICO di novembre 2017;14-02-2018;140448;0;223;1;Spese correnti;3;Acquisto di beni e servizi;2;Acquisto di servizi;15;Contratti di servizio pubblico;2;Contratti di servizio di trasporto scolastico;14-02-2018;
148;1;0;"227,24";"227,24";E.N.E.L. ENERGIA S.P.A.;X37139C8F1;SALDO Fatt.n. 004701183465  del 08/09/2016 ENERGIA ELETTRICA - VIA FOCE SNC;14-02-2018;160810;0;101;1;Spese correnti;3;Acquisto di beni e servizi;2;Acquisto di servizi;5;Utenze e canoni;4;Energia elettrica;14-02-2018;
149;1;0;"-604,54";"229,66";E.N.E.L. ENERGIA S.P.A.;X37139C8F1;SALDO Fatt.n. 004800850800  del 13/06/2017 ENERGIA ELETTRICA - VIA FOCE SNC;14-02-2018;180530;0;107;1;Spese correnti;3;Acquisto di beni e servizi;2;Acquisto di servizi;5;Utenze e canoni;4;Energia elettrica;14-02-2018;
149;2;0;"-181,04";"229,66";E.N.E.L. ENERGIA S.P.A.;X37139C8F1;SALDO Fatt.n. 004800828925  del 13/06/2017 ENERGIA ELETTRICA - VIA S.GIACOMO N.12;14-02-2018;180530;0;107;1;Spese correnti;3;Acquisto di beni e servizi;2;Acquisto di servizi;5;Utenze e canoni;4;Energia elettrica;14-02-2018;
149;3;0;"-123,31";"229,66";E.N.E.L. ENERGIA S.P.A.;X37139C8F1;SALDO Fatt.n. 004800849142  del 13/06/2017 ENERGIA ELETTRICA - VIA VALLEVO' SNC;14-02-2018;180530;0;107;1;Spese correnti;3;Acquisto di beni e servizi;2;Acquisto di servizi;5;Utenze e canoni;4;Energia elettrica;14-02-2018;
149;4;0;"80,15";"229,66";E.N.E.L. ENERGIA S.P.A.;X37139C8F1;SALDO Fatt.n. 004800476352  del 07/04/2017 ENERGIA ELETTRICA VIA S. GIACOMO 12;14-02-2018;180530;0;107;1;Spese correnti;3;Acquisto di beni e servizi;2;Acquisto di servizi;5;Utenze e canoni;4;Energia elettrica;14-02-2018;
149;5;0;"96,82";"229,66";E.N.E.L. ENERGIA S.P.A.;X37139C8F1;SALDO Fatt.n. 004800493127  del 10/04/2017 ENERGIA ELETTRICA VIA VALLEVO' SNC;14-02-2018;180530;0;107;1;Spese correnti;3;Acquisto di beni e servizi;2;Acquisto di servizi;5;Utenze e canoni;4;Energia elettrica;14-02-2018;
149;6;0;"97,60";"229,66";E.N.E.L. ENERGIA S.P.A.;X37139C8F1;SALDO Fatt.n. 004800476353  del 07/04/2017 ENERGIA ELETTRICA VIA PIANE FAVARO 36;14-02-2018;180530;0;107;1;Spese correnti;3;Acquisto di beni e servizi;2;Acquisto di servizi;5;Utenze e canoni;4;Energia elettrica;14-02-2018;
149;7;0;"99,62";"229,66";E.N.E.L. ENERGIA S.P.A.;X37139C8F1;SALDO Fatt.n. 004800828927  del 13/06/2017 ENERGIA ELETTRICA - VIA OCCIDENTALE 31;14-02-2018;180530;0;107;1;Spese correnti;3;Acquisto di beni e servizi;2;Acquisto di servizi;5;Utenze e canoni;4;Energia elettrica;14-02-2018;
149;8;0;"100,09";"229,66";E.N.E.L. ENERGIA S.P.A.;X37139C8F1;SALDO Fatt.n. 004800828926  del 13/06/2017 ENERGIA ELETTRICA - VIA PIANE FAVARO 36;14-02-2018;180530;0;107;1;Spese correnti;3;Acquisto di beni e servizi;2;Acquisto di servizi;5;Utenze e canoni;4;Energia elettrica;14-02-2018;
149;9;0;"122,63";"229,66";E.N.E.L. ENERGIA S.P.A.;X37139C8F1;SALDO Fatt.n. 004800467379  del 07/04/2017 ENERGIA ELETTRICA VIA FOCE SNC;14-02-2018;180530;0;107;1;Spese correnti;3;Acquisto di beni e servizi;2;Acquisto di servizi;5;Utenze e canoni;4;Energia elettrica;14-02-2018;
149;10;0;"244,63";"229,66";E.N.E.L. ENERGIA S.P.A.;X37139C8F1;SALDO Fatt.n. 004800863633  del 14/06/2017 ENERGIA ELETTRICA - VIA FOCE;14-02-2018;180530;0;107;1;Spese correnti;3;Acquisto di beni e servizi;2;Acquisto di servizi;5;Utenze e canoni;4;Energia elettrica;14-02-2018;
149;11;0;"297,01";"229,66";E.N.E.L. ENERGIA S.P.A.;X37139C8F1;SALDO Fatt.n. 004800476354  del 07/04/2017 ENERGIA ELETTRICA VIA OCCIDENTALE 31;14-02-2018;180530;0;107;1;Spese correnti;3;Acquisto di beni e servizi;2;Acquisto di servizi;5;Utenze e canoni;4;Energia elettrica;14-02-2018;
150;1;0;"1.643,34";"1.643,34";MORETTI CRISTIAN;Z071D66519;SALDO Fatt.n. 6PA  del 31/08/2017 LAVORI IN LOCALITA' FOCE;14-02-2018;270116;0;49;2;Spese in conto capitale;2;Investimenti fissi lordi e acquisto di terreni;1;Beni materiali;99;Altri beni materiali;999;Altri beni materiali diversi;14-02-2018;
151;1;0;"23,81";"377,47";E.N.E.L. ENERGIA S.P.A.;X37139C8F1;SALDO Fatt.n. 004800847985  del 13/06/2017 ENERGIA ELETTRICA - VIA CESARE BATTISTI;23-02-2018;160810;0;101;1;Spese correnti;3;Acquisto di beni e servizi;2;Acquisto di servizi;5;Utenze e canoni;4;Energia elettrica;23-02-2018;
151;2;0;"99,15";"377,47";E.N.E.L. ENERGIA S.P.A.;X37139C8F1;SALDO Fatt.n. 004801769260  del 06/12/2017 ENERGIA ELETTRICA - VIA MAZZINI;23-02-2018;160810;0;101;1;Spese correnti;3;Acquisto di beni e servizi;2;Acquisto di servizi;5;Utenze e canoni;4;Energia elettrica;23-02-2018;
151;3;0;"106,63";"377,47";E.N.E.L. ENERGIA S.P.A.;X37139C8F1;SALDO Fatt.n. 004800847984  del 13/06/2017 ENERGIA ELETTRICA - V.LE PAOLUCCI SNC;23-02-2018;160810;0;101;1;Spese correnti;3;Acquisto di beni e servizi;2;Acquisto di servizi;5;Utenze e canoni;4;Energia elettrica;23-02-2018;
151;4;0;"147,88";"377,47";E.N.E.L. ENERGIA S.P.A.;X37139C8F1;SALDO Fatt.n. 004800850799  del 13/06/2017 ENERGIA ELETTRICA VIA MAZZINI SNC;23-02-2018;160810;0;101;1;Spese correnti;3;Acquisto di beni e servizi;2;Acquisto di servizi;5;Utenze e canoni;4;Energia elettrica;23-02-2018;
176;1;0;"145,00";"912,00";ALFINO GIANCARLO; ;ELEZIONI POLITICHE DEL 4-03-2018 - COMPENSO SCRUTATORE SEGGIO N.1;06-03-2018;110456;0;0;1;Spese correnti;3;Acquisto di beni e servizi;2;Acquisto di servizi;99;Altri servizi;4;Altre spese per consultazioni elettorali dell'ente;06-03-2018;
176;2;0;"145,00";"912,00";BENEVENTO FRANCESCA; ;ELEZIONI POLITICHE DEL 4-03-2018 - COMPENSO SEGRETARIO SEGGIO N.1;06-03-2018;110456;0;0;1;Spese correnti;3;Acquisto di beni e servizi;2;Acquisto di servizi;99;Altri servizi;4;Altre spese per consultazioni elettorali dell'ente;06-03-2018;
176;3;0;"145,00";"912,00";COLLINI CAMILLA; ;ELEZIONI POLITICHE DEL 4-03-2018 - COMPENSO SCRUTATRICE SEGGIO N.1;06-03-2018;110456;0;0;1;Spese correnti;3;Acquisto di beni e servizi;2;Acquisto di servizi;99;Altri servizi;4;Altre spese per consultazioni elettorali dell'ente;06-03-2018;
176;4;0;"145,00";"912,00";PAOLUCCI GABRIELLA; ;ELEZIONI POLITICHE DEL 4-03-2018 - COMPENSO SCRUTATRICE SEGGIO N.1;06-03-2018;110456;0;0;1;Spese correnti;3;Acquisto di beni e servizi;2;Acquisto di servizi;99;Altri servizi;4;Altre spese per consultazioni elettorali dell'ente;06-03-2018;
176;5;0;"145,00";"912,00";SETTEMBRINO GIANDOMENICO; ;ELEZIONI POLITICHE DEL 4-03-2018 - COMPENSO SCRUTATORE SEGGIO N.1;06-03-2018;110456;0;0;1;Spese correnti;3;Acquisto di beni e servizi;2;Acquisto di servizi;99;Altri servizi;4;Altre spese per consultazioni elettorali dell'ente;06-03-2018;
176;6;0;"187,00";"912,00";TRIDENTE MARTA ANNA MARIA; ;ELEZIONI POLITICHE DEL 4-03-2018 - COMPENSO PRESIDENTE SEGGIO N.1;06-03-2018;110456;0;0;1;Spese correnti;3;Acquisto di beni e servizi;2;Acquisto di servizi;99;Altri servizi;4;Altre spese per consultazioni elettorali dell'ente;06-03-2018;
177;1;0;"145,00";"912,00";BUCCI FRANCESCA; ;ELEZIONI POLITICHE DEL 4-03-2018 - COMPENSO SCRUTATRICE SEGGIO N.2;06-03-2018;110456;0;0;1;Spese correnti;3;Acquisto di beni e servizi;2;Acquisto di servizi;99;Altri servizi;4;Altre spese per consultazioni elettorali dell'ente;06-03-2018;
177;2;0;"145,00";"912,00";CARAVAGGIO ANDREA; ;ELEZIONI POLITICHE DEL 4-03-2018 - COMPENSO SCRUTATORE SEGGIO N.2;06-03-2018;110456;0;0;1;Spese correnti;3;Acquisto di beni e servizi;2;Acquisto di servizi;99;Altri servizi;4;Altre spese per consultazioni elettorali dell'ente;06-03-2018;
177;3;0;"187,00";"912,00";D'ALESSANDRO BARBARA; ;ELEZIONI POLITICHE DEL 4-03-2018 - COMPENSO PRESIDENTE SEGGIO N.2;06-03-2018;110456;0;0;1;Spese correnti;3;Acquisto di beni e servizi;2;Acquisto di servizi;99;Altri servizi;4;Altre spese per consultazioni elettorali dell'ente;06-03-2018;
177;4;0;"145,00";"912,00";DI NUNZIO VALERIA; ;ELEZIONI POLITICHE DEL 4-03-2018 - COMPENSO SCRUTATRICE SEGGIO N.2;06-03-2018;110456;0;0;1;Spese correnti;3;Acquisto di beni e servizi;2;Acquisto di servizi;99;Altri servizi;4;Altre spese per consultazioni elettorali dell'ente;06-03-2018;
177;5;0;"145,00";"912,00";NUOVAVIA CHIARA; ;ELEZIONI POLITICHE DEL 4-03-2018 - COMPENSO SCRUTATRICE SEGGIO N.2;06-03-2018;110456;0;0;1;Spese correnti;3;Acquisto di beni e servizi;2;Acquisto di servizi;99;Altri servizi;4;Altre spese per consultazioni elettorali dell'ente;06-03-2018;
177;6;0;"145,00";"912,00";ZULLI CARLO; ;ELEZIONI POLITICHE DEL 4-03-2018 - COMPENSO SEGRETARIO SEGGIO N.2;06-03-2018;110456;0;0;1;Spese correnti;3;Acquisto di beni e servizi;2;Acquisto di servizi;99;Altri servizi;4;Altre spese per consultazioni elettorali dell'ente;06-03-2018;
179;1;0;"100,00";"100,00";MEDIACONSULT SRL;ZD7206F98A;SALDO Fatt.n. 1001  del 21/11/2017 Formazione obbligatoria in materia di MISURE DI CONTRASTO ALLA CORRUZIONE - Data corso: 14/11/2017.;06-03-2018;110262;0;161;1;Spese correnti;3;Acquisto di beni e servizi;2;Acquisto di servizi;4;Acquisto di servizi per formazione e addestramento del personale dell'ente;4;Acquisto di servizi per formazione obbligatoria;06-03-2018;
181;1;0;"76,20";"76,20";POSTE ITALIANE S.P.A.;Z0522A0AFA;ACQUISTO DI CARTOLINE DI AVVISO DI RICEVIMENTO ATTI GIUDIZIARI;06-03-2018;110224;0;55;1;Spese correnti;3;Acquisto di beni e servizi;1;Acquisto di beni;2;Altri beni di consumo;1;"Carta, cancelleria e stampati";06-03-2018;
182;1;0;"27,51";"27,51";TELECOM ITALIA S.P.A.;Z53178E0E3;ACCONTO Fatt.n. 7X00677504  del 14/02/2018 SPESE TELEFONICHE POLIZIA LOCALE 2BIM 2018;06-03-2018;130132;0;40;1;Spese correnti;3;Acquisto di beni e servizi;2;Acquisto di servizi;13;Servizi ausiliari per il funzionamento dell'ente;999;Altri servizi ausiliari n.a.c.;06-03-2018;
183;1;0;"4,75";"24,12";AUTOSTRADE PER L'ITALIA;0;ACCONTO Fatt.n. 900001543D  del 30/01/2018 TELEPASS GENNAIO 2018;06-03-2018;130132;0;56;1;Spese correnti;3;Acquisto di beni e servizi;2;Acquisto di servizi;13;Servizi ausiliari per il funzionamento dell'ente;999;Altri servizi ausiliari n.a.c.;06-03-2018;
183;2;0;"0,91";"24,12";BANCA POPOLARE DELL'EMILIA ROMAGNA; ;PEDAGGI AUTOSTRADALI;06-03-2018;130132;0;56;1;Spese correnti;3;Acquisto di beni e servizi;2;Acquisto di servizi;13;Servizi ausiliari per il funzionamento dell'ente;999;Altri servizi ausiliari n.a.c.;06-03-2018;
183;3;0;"0,91";"24,12";BANCA POPOLARE DELL'EMILIA ROMAGNA; ;PEDAGGI AUTOSTRADALI;06-03-2018;130132;0;56;1;Spese correnti;3;Acquisto di beni e servizi;2;Acquisto di servizi;13;Servizi ausiliari per il funzionamento dell'ente;999;Altri servizi ausiliari n.a.c.;06-03-2018;
183;4;0;"1,03";"24,12";TELEPASS S.P.A.;0;ACCONTO Fatt.n. 900001488T  del 30/01/2018 CANONE LOCAZIONE TELEPASS GENNAIO 2018;06-03-2018;130132;0;56;1;Spese correnti;3;Acquisto di beni e servizi;2;Acquisto di servizi;13;Servizi ausiliari per il funzionamento dell'ente;999;Altri servizi ausiliari n.a.c.;06-03-2018;
183;5;0;"16,52";"24,12";TELEPASS S.P.A.;0;ACCONTO Fatt.n. 900004054T  del 28/02/2018 CANONE NOLEGGIO TELEPASS E PEDAGGI FEBBRAIO 2018;06-03-2018;130132;0;56;1;Spese correnti;3;Acquisto di beni e servizi;2;Acquisto di servizi;13;Servizi ausiliari per il funzionamento dell'ente;999;Altri servizi ausiliari n.a.c.;06-03-2018;
187;1;0;"20.000,00";"20.000,00";LECCE WAVE DI LECCE LUCA;68565289E4;ACCONTO Fatt.n. 02/PA/2018  del 25/01/2018 COMPLETAMENTO MESSA IN SICUREZZA EDIFICIO SCOLASTICO DEL CAPOLUOGO DEL COMUNE DI ROCCA SAN GIOVANNI;07-03-2018;240240;0;178;2;Spese in conto capitale;2;Investimenti fissi lordi e acquisto di terreni;1;Beni materiali;9;Beni immobili;3;Fabbricati ad uso scolastico;07-03-2018;
188;1;0;"141,00";"141,00";MEDIASS S.P.A.;Z6422A13EA;LIQUIDAZIONE POLIZZE UNIPOL-SAI PER AUTOVETTURA tg. YA942AD - IMPEGNO DI SPESA E LIQUIDAZIONE;07-03-2018;110602;0;59;1;Spese correnti;10;Altre spese correnti;4;Premi di assicurazione;1;Premi di assicurazione contro i danni;3;Premi di assicurazione per responsabilit� civile verso terzi;07-03-2018;
189;1;0;"41,00";"41,00";MEDIASS S.P.A.;Z8E22A1378;LIQUIDAZIONE POLIZZE UNIPOL-SAI PER VEICOLO tg. EC41568;07-03-2018;110602;0;60;1;Spese correnti;10;Altre spese correnti;4;Premi di assicurazione;1;Premi di assicurazione contro i danni;3;Premi di assicurazione per responsabilit� civile verso terzi;07-03-2018;
191;1;0;"873,87";"3.495,48";CONSORZIO COOPERATIVE SOCIALI S.G.S.;ZF0189D68F;SALDO Fatt.n. 1009/10  del 07/09/2017 GESTIONE BIBLIOTECA COMUNALE DI AGOSTO 2017;13-03-2018;140730;0;49;1;Spese correnti;3;Acquisto di beni e servizi;2;Acquisto di servizi;15;Contratti di servizio pubblico;999;Altre spese per contratti di servizio pubblico;13-03-2018;
191;2;0;"873,87";"3.495,48";CONSORZIO COOPERATIVE SOCIALI S.G.S.;ZF0189D68F;SALDO Fatt.n. 1139/10  del 02/10/2017 GESTIONE BIBLIOTECA COMUNALE DI SETTEMBRE  2017;13-03-2018;140730;0;49;1;Spese correnti;3;Acquisto di beni e servizi;2;Acquisto di servizi;15;Contratti di servizio pubblico;999;Altre spese per contratti di servizio pubblico;13-03-2018;
191;3;0;"873,87";"3.495,48";CONSORZIO COOPERATIVE SOCIALI S.G.S.;ZF0189D68F;SALDO Fatt.n. 883/10  del 04/08/2017 GESTIONE BIBLIOTECA COMUNALE DI LUGLIO 2017;13-03-2018;140730;0;49;1;Spese correnti;3;Acquisto di beni e servizi;2;Acquisto di servizi;15;Contratti di servizio pubblico;999;Altre spese per contratti di servizio pubblico;13-03-2018;
191;4;0;"873,87";"3.495,48";CONSORZIO COOPERATIVE SOCIALI S.G.S.;ZF0189D68F;SALDO Fatt.n. 1263/10  del 03/11/2017 GESTIONE BIBLIOTECA COMUNALE DI OTTOBRE 2017;13-03-2018;140730;0;49;1;Spese correnti;3;Acquisto di beni e servizi;2;Acquisto di servizi;15;Contratti di servizio pubblico;999;Altre spese per contratti di servizio pubblico;13-03-2018;
192;1;0;"1.682,59";"1.682,59";DIGITAL SERVICE S.N.C.;Z3F1F08D1B;SALDO Fatt.n. 37/02  del 07/07/2017 INTERVENTO TECNICO SU FOTOCOPIATRICE SHARP;13-03-2018;110224;0;116;1;Spese correnti;3;Acquisto di beni e servizi;1;Acquisto di beni;2;Altri beni di consumo;8;Strumenti tecnico-specialistici non sanitari;13-03-2018;
193;1;0;"1.246,71";"1.246,71";POSTE ITALIANE S.P.A.;Z7B14AEE33;SALDO Fatt.n. 8717294102  del 05/10/2017 CORRISPONDENZE AFFRANCATE NEL MESE DI LUGLIO 2017;13-03-2018;110260;0;135;1;Spese correnti;3;Acquisto di beni e servizi;2;Acquisto di servizi;16;Servizi amministrativi;2;Spese postali;13-03-2018;
194;1;0;"600,00";"600,00";IT CREATIVE DI D'ANGELO FRANCESCO;Z6D1D90C9A;SALDO Fatt.n. 17/A  del 31/10/2017 ASSISTENZA POSTAZIONI INFORMATICHE E SITO ISTITUZIONALE OTTOBRE 2017;13-03-2018;110248;0;122;1;Spese correnti;3;Acquisto di beni e servizi;2;Acquisto di servizi;19;Servizi informatici e di telecomunicazioni;10;Servizi di consulenza e prestazioni professionali ICT;13-03-2018;
195;1;0;"21.500,00";"21.500,00";PASQUARELLI AUTO SRL;Z1E2143B15;SALDO Fatt.n. 01/FE  del 20/02/2018 AUTOVEICOLO KIA STONIC 1.6;13-03-2018;210240;0;174;2;Spese in conto capitale;2;Investimenti fissi lordi e acquisto di terreni;1;Beni materiali;3;Mobili e arredi;999;Mobili e arredi n.a.c.;13-03-2018;
196;1;0;"94,90";"94,90";MAGGIOLI S.P.A.;Z8D21E7C4D;SALDO Fatt.n. 0002105163  del 31/01/2018 SIGILLI E NUOVO CODICE DELLA STRADA;13-03-2018;130120;0;21;1;Spese correnti;3;Acquisto di beni e servizi;1;Acquisto di beni;2;Altri beni di consumo;1;"Carta, cancelleria e stampati";13-03-2018;
197;1;0;"569,96";"569,96";C.I.M.A.  SOC. COOP.  A.R.L.;Z721CA5CDF;SALDO Fatt.n. 16/PA  del 03/01/2018 SERVIZIO DI ASILO PER CANI NEI MESI DI OTTOBRE-NOVEMBRE E DICEMBRE 2017;13-03-2018;160532;0;25;1;Spese correnti;3;Acquisto di beni e servizi;2;Acquisto di servizi;15;Contratti di servizio pubblico;11;Contratti di servizio per la lotta al randagismo;13-03-2018;
199;1;0;"148,67";"1.797,65";CARTOLERIA VU-ERRE;Z1620E5010;SALDO Fatt.n. 4/PA  del 13/11/2017 Cedole fornitura libri "Scuola Primaria" Anno 2017/20178;14-03-2018;140434;0;182;1;Spese correnti;3;Acquisto di beni e servizi;1;Acquisto di beni;2;Altri beni di consumo;1;"Carta, cancelleria e stampati";14-03-2018;
199;2;0;"592,61";"1.797,65";CARTOLIBRERIA CIPOLLA DI MAURIZIO CIPOLLA;Z1620E5010;SALDO Fatt.n. 21/PA  del 27/11/2017 LIBRI DI TESTO;14-03-2018;140434;0;182;1;Spese correnti;3;Acquisto di beni e servizi;1;Acquisto di beni;2;Altri beni di consumo;1;"Carta, cancelleria e stampati";14-03-2018;
199;3;0;"1.056,37";"1.797,65";CARTOLIBRERIA CIPOLLA DI MAURIZIO CIPOLLA;Z1620E5010;SALDO Fatt.n. 20/PA  del 27/11/2017 LIBRI DI TESTO;14-03-2018;140434;0;182;1;Spese correnti;3;Acquisto di beni e servizi;1;Acquisto di beni;2;Altri beni di consumo;1;"Carta, cancelleria e stampati";14-03-2018;
200;1;0;"2.684,00";"2.684,00";ENZOBIANCO SRL;Z071D66519;SALDO Fatt.n. 1/01  del 13/09/2017 LAVORI DI ORDINARIA MANUTENZIONE STRADA COMUNALE LOC. SCALZINO MONTAGGIO BARRIERA METALLICA;14-03-2018;270116;0;49;2;Spese in conto capitale;2;Investimenti fissi lordi e acquisto di terreni;1;Beni materiali;99;Altri beni materiali;999;Altri beni materiali diversi;14-03-2018;
201;1;0;"965,83";"1.931,66";BLUE LINE SOC. COOP. SOCIALE;X0919A7161;SALDO Fatt.n. 240  del 31/08/2017 PULIZIA DEI LOCALI COMUNALI NEL MESE DI AGOSTO 2017;14-03-2018;110256;0;143;1;Spese correnti;3;Acquisto di beni e servizi;2;Acquisto di servizi;13;Servizi ausiliari per il funzionamento dell'ente;2;Servizi di pulizia e lavanderia;14-03-2018;
201;2;0;"965,83";"1.931,66";BLUE LINE SOC. COOP. SOCIALE;X0919A7161;SALDO Fatt.n. 267  del 30/09/2017 PULIZIA DEI LOCALI COMUNALI NEL MESE DI SETTEMBRE 2017;14-03-2018;110256;0;143;1;Spese correnti;3;Acquisto di beni e servizi;2;Acquisto di servizi;13;Servizi ausiliari per il funzionamento dell'ente;2;Servizi di pulizia e lavanderia;14-03-2018;
202;1;0;"-557,91";"4.122,31";E.N.E.L. ENERGIA S.P.A.;X37139C8F1;SALDO Fatt.n. 004801135101  del 13/08/2017 ILLUMINAZIONE PUBBLICA;14-03-2018;170236;0;105;1;Spese correnti;3;Acquisto di beni e servizi;2;Acquisto di servizi;5;Utenze e canoni;4;Energia elettrica;14-03-2018;
202;2;0;"11,02";"4.122,31";E.N.E.L. ENERGIA S.P.A.;X37139C8F1;SALDO Fatt.n. 004801092663  del 08/08/2017 ILLUMINAZIONE PUBBLICA;14-03-2018;170236;0;105;1;Spese correnti;3;Acquisto di beni e servizi;2;Acquisto di servizi;5;Utenze e canoni;4;Energia elettrica;14-03-2018;
202;3;0;"55,24";"4.122,31";E.N.E.L. ENERGIA S.P.A.;X37139C8F1;SALDO Fatt.n. 004801089239  del 08/08/2017 ILLUMINAZIONE PUBBLICA;14-03-2018;170236;0;105;1;Spese correnti;3;Acquisto di beni e servizi;2;Acquisto di servizi;5;Utenze e canoni;4;Energia elettrica;14-03-2018;
202;4;0;"59,02";"4.122,31";E.N.E.L. ENERGIA S.P.A.;X37139C8F1;SALDO Fatt.n. 004801092661  del 08/08/2017 ILLUMINAZIONE PUBBLICA;14-03-2018;170236;0;105;1;Spese correnti;3;Acquisto di beni e servizi;2;Acquisto di servizi;5;Utenze e canoni;4;Energia elettrica;14-03-2018;
202;5;0;"79,61";"4.122,31";E.N.E.L. ENERGIA S.P.A.;X37139C8F1;SALDO Fatt.n. 004801089237  del 08/08/2017 ILLUMINAZIONE PUBBLICA;14-03-2018;170236;0;105;1;Spese correnti;3;Acquisto di beni e servizi;2;Acquisto di servizi;5;Utenze e canoni;4;Energia elettrica;14-03-2018;
202;6;0;"91,33";"4.122,31";E.N.E.L. ENERGIA S.P.A.;X37139C8F1;SALDO Fatt.n. 004801092659  del 08/08/2017 ILLUMINAZIONE PUBBLICA;14-03-2018;170236;0;105;1;Spese correnti;3;Acquisto di beni e servizi;2;Acquisto di servizi;5;Utenze e canoni;4;Energia elettrica;14-03-2018;
202;7;0;"93,09";"4.122,31";E.N.E.L. ENERGIA S.P.A.;X37139C8F1;SALDO Fatt.n. 004801092665  del 08/08/2017 ILLUMINAZIONE PUBBLICA;14-03-2018;170236;0;105;1;Spese correnti;3;Acquisto di beni e servizi;2;Acquisto di servizi;5;Utenze e canoni;4;Energia elettrica;14-03-2018;
202;8;0;"101,71";"4.122,31";E.N.E.L. ENERGIA S.P.A.;X37139C8F1;SALDO Fatt.n. 004801092676  del 08/08/2017 ILLUMINAZIONE PUBBLICA;14-03-2018;170236;0;105;1;Spese correnti;3;Acquisto di beni e servizi;2;Acquisto di servizi;5;Utenze e canoni;4;Energia elettrica;14-03-2018;
202;9;0;"103,66";"4.122,31";E.N.E.L. ENERGIA S.P.A.;X37139C8F1;SALDO Fatt.n. 004801089240  del 08/08/2017 ILLUMINAZIONE PUBBLICA;14-03-2018;170236;0;105;1;Spese correnti;3;Acquisto di beni e servizi;2;Acquisto di servizi;5;Utenze e canoni;4;Energia elettrica;14-03-2018;
202;10;0;"117,86";"4.122,31";E.N.E.L. ENERGIA S.P.A.;X37139C8F1;SALDO Fatt.n. 004800983711  del 12/07/2017 ILLUMINAZIONE PUBBLICA;14-03-2018;170236;0;105;1;Spese correnti;3;Acquisto di beni e servizi;2;Acquisto di servizi;5;Utenze e canoni;4;Energia elettrica;14-03-2018;
202;11;0;"137,60";"4.122,31";E.N.E.L. ENERGIA S.P.A.;X37139C8F1;SALDO Fatt.n. 004801092668  del 08/08/2017 ILLUMINAZIONE PUBBLICA;14-03-2018;170236;0;105;1;Spese correnti;3;Acquisto di beni e servizi;2;Acquisto di servizi;5;Utenze e canoni;4;Energia elettrica;14-03-2018;
202;12;0;"161,45";"4.122,31";E.N.E.L. ENERGIA S.P.A.;X37139C8F1;SALDO Fatt.n. 004801089246  del 08/08/2017 ILLUMINAZIONE PUBBLICA;14-03-2018;170236;0;105;1;Spese correnti;3;Acquisto di beni e servizi;2;Acquisto di servizi;5;Utenze e canoni;4;Energia elettrica;14-03-2018;
202;13;0;"176,16";"4.122,31";E.N.E.L. ENERGIA S.P.A.;X37139C8F1;SALDO Fatt.n. 004801083309  del 08/08/2017 ILLUMINAZIONE PUBBLICA;14-03-2018;170236;0;105;1;Spese correnti;3;Acquisto di beni e servizi;2;Acquisto di servizi;5;Utenze e canoni;4;Energia elettrica;14-03-2018;
202;14;0;"193,02";"4.122,31";E.N.E.L. ENERGIA S.P.A.;X37139C8F1;SALDO Fatt.n. 004801092677  del 08/08/2017 ILLUMINAZIONE PUBBLICA;14-03-2018;170236;0;105;1;Spese correnti;3;Acquisto di beni e servizi;2;Acquisto di servizi;5;Utenze e canoni;4;Energia elettrica;14-03-2018;
202;15;0;"221,10";"4.122,31";E.N.E.L. ENERGIA S.P.A.;X37139C8F1;SALDO Fatt.n. 004801092675  del 08/08/2017 ILLUMINAZIONE PUBBLICA;14-03-2018;170236;0;105;1;Spese correnti;3;Acquisto di beni e servizi;2;Acquisto di servizi;5;Utenze e canoni;4;Energia elettrica;14-03-2018;
202;16;0;"275,90";"4.122,31";E.N.E.L. ENERGIA S.P.A.;X37139C8F1;SALDO Fatt.n. 004801092669  del 08/08/2017 ILLUMINAZIONE PUBBLICA;14-03-2018;170236;0;105;1;Spese correnti;3;Acquisto di beni e servizi;2;Acquisto di servizi;5;Utenze e canoni;4;Energia elettrica;14-03-2018;
202;17;0;"288,69";"4.122,31";E.N.E.L. ENERGIA S.P.A.;X37139C8F1;SALDO Fatt.n. 004801089587  del 08/08/2017 ENERGIA ELETTRICA I.P.;14-03-2018;170236;0;105;1;Spese correnti;3;Acquisto di beni e servizi;2;Acquisto di servizi;5;Utenze e canoni;4;Energia elettrica;14-03-2018;
202;18;0;"439,44";"4.122,31";E.N.E.L. ENERGIA S.P.A.;X37139C8F1;SALDO Fatt.n. 004801092672  del 08/08/2017 ILLUMINAZIONE PUBBLICA;14-03-2018;170236;0;105;1;Spese correnti;3;Acquisto di beni e servizi;2;Acquisto di servizi;5;Utenze e canoni;4;Energia elettrica;14-03-2018;
202;19;0;"622,07";"4.122,31";E.N.E.L. ENERGIA S.P.A.;X37139C8F1;SALDO Fatt.n. 004801089235  del 08/08/2017 ILLUMINAZIONE PUBBLICA;14-03-2018;170236;0;105;1;Spese correnti;3;Acquisto di beni e servizi;2;Acquisto di servizi;5;Utenze e canoni;4;Energia elettrica;14-03-2018;
202;20;0;"1.452,25";"4.122,31";E.N.E.L. ENERGIA S.P.A.;X37139C8F1;SALDO Fatt.n. 004801089231  del 08/08/2017 ILLUMINAZIONE PUBBLICA;14-03-2018;170236;0;105;1;Spese correnti;3;Acquisto di beni e servizi;2;Acquisto di servizi;5;Utenze e canoni;4;Energia elettrica;14-03-2018;
203;1;0;"5,43";"472,67";E.N.E.L. ENERGIA S.P.A.;X37139C8F1;SALDO Fatt.n. 004801089234  del 08/08/2017 ILLUMINAZIONE PUBBLICA;14-03-2018;170236;0;105;1;Spese correnti;3;Acquisto di beni e servizi;2;Acquisto di servizi;5;Utenze e canoni;4;Energia elettrica;14-03-2018;
203;2;0;"6,04";"472,67";E.N.E.L. ENERGIA S.P.A.;X37139C8F1;SALDO Fatt.n. 004801089245  del 08/08/2017 ILLUMINAZIONE PUBBLICA;14-03-2018;170236;0;105;1;Spese correnti;3;Acquisto di beni e servizi;2;Acquisto di servizi;5;Utenze e canoni;4;Energia elettrica;14-03-2018;
203;3;0;"7,41";"472,67";E.N.E.L. ENERGIA S.P.A.;X37139C8F1;SALDO Fatt.n. 004801092667  del 08/08/2017 ILLUMINAZIONE PUBBLICA;14-03-2018;170236;0;105;1;Spese correnti;3;Acquisto di beni e servizi;2;Acquisto di servizi;5;Utenze e canoni;4;Energia elettrica;14-03-2018;
203;4;0;"11,02";"472,67";E.N.E.L. ENERGIA S.P.A.;X37139C8F1;SALDO Fatt.n. 004801089244  del 08/08/2017 ILLUMINAZIONE PUBBLICA;14-03-2018;170236;0;105;1;Spese correnti;3;Acquisto di beni e servizi;2;Acquisto di servizi;5;Utenze e canoni;4;Energia elettrica;14-03-2018;
203;5;0;"13,16";"472,67";E.N.E.L. ENERGIA S.P.A.;X37139C8F1;SALDO Fatt.n. 004801092671  del 08/08/2017 ILLUMINAZIONE PUBBLICA;14-03-2018;170236;0;105;1;Spese correnti;3;Acquisto di beni e servizi;2;Acquisto di servizi;5;Utenze e canoni;4;Energia elettrica;14-03-2018;
203;6;0;"18,84";"472,67";E.N.E.L. ENERGIA S.P.A.;X37139C8F1;SALDO Fatt.n. 004801096560  del 08/08/2017 ILLUMINAZIONE PUBBLICA;14-03-2018;170236;0;105;1;Spese correnti;3;Acquisto di beni e servizi;2;Acquisto di servizi;5;Utenze e canoni;4;Energia elettrica;14-03-2018;
203;7;0;"24,06";"472,67";E.N.E.L. ENERGIA S.P.A.;X37139C8F1;SALDO Fatt.n. 004801092662  del 08/08/2017 ILLUMINAZIONE PUBBLICA;14-03-2018;170236;0;105;1;Spese correnti;3;Acquisto di beni e servizi;2;Acquisto di servizi;5;Utenze e canoni;4;Energia elettrica;14-03-2018;
203;8;0;"24,27";"472,67";E.N.E.L. ENERGIA S.P.A.;X37139C8F1;SALDO Fatt.n. 004801089238  del 08/08/2017 ILLUMINAZIONE PUBBLICA;14-03-2018;170236;0;105;1;Spese correnti;3;Acquisto di beni e servizi;2;Acquisto di servizi;5;Utenze e canoni;4;Energia elettrica;14-03-2018;
203;9;0;"24,68";"472,67";E.N.E.L. ENERGIA S.P.A.;X37139C8F1;SALDO Fatt.n. 004801092660  del 08/08/2017 ILLUMINAZIONE PUBBLICA;14-03-2018;170236;0;105;1;Spese correnti;3;Acquisto di beni e servizi;2;Acquisto di servizi;5;Utenze e canoni;4;Energia elettrica;14-03-2018;
203;10;0;"25,94";"472,67";E.N.E.L. ENERGIA S.P.A.;X37139C8F1;SALDO Fatt.n. 004801112711  del 09/08/2017 ILLUMINAZIONE PUBBLICA;14-03-2018;170236;0;105;1;Spese correnti;3;Acquisto di beni e servizi;2;Acquisto di servizi;5;Utenze e canoni;4;Energia elettrica;14-03-2018;
203;11;0;"26,44";"472,67";E.N.E.L. ENERGIA S.P.A.;X37139C8F1;SALDO Fatt.n. 004801089230  del 08/08/2017 ILLUMINAZIONE PUBBLICA;14-03-2018;170236;0;105;1;Spese correnti;3;Acquisto di beni e servizi;2;Acquisto di servizi;5;Utenze e canoni;4;Energia elettrica;14-03-2018;
203;12;0;"27,24";"472,67";E.N.E.L. ENERGIA S.P.A.;X37139C8F1;SALDO Fatt.n. 004801089232  del 08/08/2017 ILLUMINAZIONE PUBBLICA;14-03-2018;170236;0;105;1;Spese correnti;3;Acquisto di beni e servizi;2;Acquisto di servizi;5;Utenze e canoni;4;Energia elettrica;14-03-2018;
203;13;0;"45,87";"472,67";E.N.E.L. ENERGIA S.P.A.;X37139C8F1;SALDO Fatt.n. 004801089241  del 08/08/2017 ILLUMINAZIONE PUBBLICA;14-03-2018;170236;0;105;1;Spese correnti;3;Acquisto di beni e servizi;2;Acquisto di servizi;5;Utenze e canoni;4;Energia elettrica;14-03-2018;
203;14;0;"51,72";"472,67";E.N.E.L. ENERGIA S.P.A.;X37139C8F1;SALDO Fatt.n. 004801092664  del 08/08/2017 ILLUMINAZIONE PUBBLICA;14-03-2018;170236;0;105;1;Spese correnti;3;Acquisto di beni e servizi;2;Acquisto di servizi;5;Utenze e canoni;4;Energia elettrica;14-03-2018;
203;15;0;"160,55";"472,67";E.N.E.L. ENERGIA S.P.A.;X37139C8F1;SALDO Fatt.n. 004801092674  del 08/08/2017 ILLUMINAZIONE PUBBLICA;14-03-2018;170236;0;105;1;Spese correnti;3;Acquisto di beni e servizi;2;Acquisto di servizi;5;Utenze e canoni;4;Energia elettrica;14-03-2018;
204;1;0;"542,73";"542,73";BORGIONE CENTRO DIDATTICO S.R.L.;Z832123720;SALDO Fatt.n. V3-28899  del 12/12/2017 ACQUISTO MATERIALE DIDATTICO;14-03-2018;140140;0;177;1;Spese correnti;3;Acquisto di beni e servizi;1;Acquisto di beni;2;Altri beni di consumo;12;Accessori per attivit� sportive e ricreative;14-03-2018;
205;1;0;"1.610,40";"1.610,40";TECNOASFALTI S.R.L.;Z071D66519;SALDO Fatt.n. 70/10  del 30/11/2017 CONGLOMERATO BITUMINOSO;14-03-2018;270116;0;49;2;Spese in conto capitale;2;Investimenti fissi lordi e acquisto di terreni;1;Beni materiali;99;Altri beni materiali;999;Altri beni materiali diversi;14-03-2018;
206;1;0;"5,86";"2.204,92";E.N.E.L. ENERGIA S.P.A.;X37139C8F1;SALDO Fatt.n. 004801239290  del 08/09/2017 ILLUMINAZIONE PUBBLICA;14-03-2018;170236;0;105;1;Spese correnti;3;Acquisto di beni e servizi;2;Acquisto di servizi;5;Utenze e canoni;4;Energia elettrica;14-03-2018;
206;2;0;"6,49";"2.204,92";E.N.E.L. ENERGIA S.P.A.;X37139C8F1;SALDO Fatt.n. 004801239298  del 08/09/2017 ILLUMINAZIONE PUBBLICA;14-03-2018;170236;0;105;1;Spese correnti;3;Acquisto di beni e servizi;2;Acquisto di servizi;5;Utenze e canoni;4;Energia elettrica;14-03-2018;
206;3;0;"8,02";"2.204,92";E.N.E.L. ENERGIA S.P.A.;X37139C8F1;SALDO Fatt.n. 004801247790  del 08/09/2017 ILLUMINAZIONE PUBBLICA;14-03-2018;170236;0;105;1;Spese correnti;3;Acquisto di beni e servizi;2;Acquisto di servizi;5;Utenze e canoni;4;Energia elettrica;14-03-2018;
206;4;0;"11,94";"2.204,92";E.N.E.L. ENERGIA S.P.A.;X37139C8F1;SALDO Fatt.n. 004801247787  del 08/09/2017 ILLUMINAZIONE PUBBLICA;14-03-2018;170236;0;105;1;Spese correnti;3;Acquisto di beni e servizi;2;Acquisto di servizi;5;Utenze e canoni;4;Energia elettrica;14-03-2018;
206;5;0;"12,14";"2.204,92";E.N.E.L. ENERGIA S.P.A.;X37139C8F1;SALDO Fatt.n. 004801239297  del 08/09/2017 ILLUMINAZIONE PUBBLICA;14-03-2018;170236;0;105;1;Spese correnti;3;Acquisto di beni e servizi;2;Acquisto di servizi;5;Utenze e canoni;4;Energia elettrica;14-03-2018;
206;6;0;"14,12";"2.204,92";E.N.E.L. ENERGIA S.P.A.;X37139C8F1;SALDO Fatt.n. 004801247793  del 08/09/2017 ILLUMINAZIONE PUBBLICA;14-03-2018;170236;0;105;1;Spese correnti;3;Acquisto di beni e servizi;2;Acquisto di servizi;5;Utenze e canoni;4;Energia elettrica;14-03-2018;
206;7;0;"22,31";"2.204,92";E.N.E.L. ENERGIA S.P.A.;X37139C8F1;SALDO Fatt.n. 004801239289  del 08/09/2017 ILLUMINAZIONE PUBBLICA;14-03-2018;170236;0;105;1;Spese correnti;3;Acquisto di beni e servizi;2;Acquisto di servizi;5;Utenze e canoni;4;Energia elettrica;14-03-2018;
206;8;0;"25,95";"2.204,92";E.N.E.L. ENERGIA S.P.A.;X37139C8F1;SALDO Fatt.n. 004801239293  del 08/09/2017 ILLUMINAZIONE PUBBLICA;14-03-2018;170236;0;105;1;Spese correnti;3;Acquisto di beni e servizi;2;Acquisto di servizi;5;Utenze e canoni;4;Energia elettrica;14-03-2018;
206;9;0;"27,27";"2.204,92";E.N.E.L. ENERGIA S.P.A.;X37139C8F1;SALDO Fatt.n. 004801247786  del 08/09/2017 ILLUMINAZIONE PUBBLICA;14-03-2018;170236;0;105;1;Spese correnti;3;Acquisto di beni e servizi;2;Acquisto di servizi;5;Utenze e canoni;4;Energia elettrica;14-03-2018;
206;10;0;"29,05";"2.204,92";E.N.E.L. ENERGIA S.P.A.;X37139C8F1;SALDO Fatt.n. 004801239287  del 08/09/2017 ILLUMINAZIONE PUBBLICA;14-03-2018;170236;0;105;1;Spese correnti;3;Acquisto di beni e servizi;2;Acquisto di servizi;5;Utenze e canoni;4;Energia elettrica;14-03-2018;
206;11;0;"29,66";"2.204,92";E.N.E.L. ENERGIA S.P.A.;X37139C8F1;SALDO Fatt.n. 004801239286  del 08/09/2017 ILLUMINAZIONE PUBBLICA;14-03-2018;170236;0;105;1;Spese correnti;3;Acquisto di beni e servizi;2;Acquisto di servizi;5;Utenze e canoni;4;Energia elettrica;14-03-2018;
206;12;0;"29,88";"2.204,92";E.N.E.L. ENERGIA S.P.A.;X37139C8F1;SALDO Fatt.n. 004801276447  del 13/09/2017 ILLUMINAZIONE PUBBLICA;14-03-2018;170236;0;105;1;Spese correnti;3;Acquisto di beni e servizi;2;Acquisto di servizi;5;Utenze e canoni;4;Energia elettrica;14-03-2018;
206;13;0;"29,88";"2.204,92";E.N.E.L. ENERGIA S.P.A.;X37139C8F1;SALDO Fatt.n. 004801247784  del 08/09/2017 ILLUMINAZIONE PUBBLICA;14-03-2018;170236;0;105;1;Spese correnti;3;Acquisto di beni e servizi;2;Acquisto di servizi;5;Utenze e canoni;4;Energia elettrica;14-03-2018;
206;14;0;"61,52";"2.204,92";E.N.E.L. ENERGIA S.P.A.;X37139C8F1;SALDO Fatt.n. 004801247785  del 08/09/2017 ILLUMINAZIONE PUBBLICA;14-03-2018;170236;0;105;1;Spese correnti;3;Acquisto di beni e servizi;2;Acquisto di servizi;5;Utenze e canoni;4;Energia elettrica;14-03-2018;
206;15;0;"66,06";"2.204,92";E.N.E.L. ENERGIA S.P.A.;X37139C8F1;SALDO Fatt.n. 004801239294  del 08/09/2017 ILLUMINAZIONE PUBBLICA;14-03-2018;170236;0;105;1;Spese correnti;3;Acquisto di beni e servizi;2;Acquisto di servizi;5;Utenze e canoni;4;Energia elettrica;14-03-2018;
206;16;0;"147,90";"2.204,92";E.N.E.L. ENERGIA S.P.A.;X37139C8F1;SALDO Fatt.n. 004801273779  del 13/09/2017 ILLUMINAZIONE PUBBLICA;14-03-2018;170236;0;105;1;Spese correnti;3;Acquisto di beni e servizi;2;Acquisto di servizi;5;Utenze e canoni;4;Energia elettrica;14-03-2018;
206;17;0;"1.676,87";"2.204,92";E.N.E.L. ENERGIA S.P.A.;X37139C8F1;SALDO Fatt.n. 004801239288  del 08/09/2017 ILLUMINAZIONE PUBBLICA;14-03-2018;170236;0;105;1;Spese correnti;3;Acquisto di beni e servizi;2;Acquisto di servizi;5;Utenze e canoni;4;Energia elettrica;14-03-2018;
207;1;0;"50,46";"3.459,18";E.N.E.L. ENERGIA S.P.A.;X37139C8F1;SALDO Fatt.n. 004801239296  del 08/09/2017 ILLUMINAZIONE PUBBLICA;14-03-2018;170236;0;105;1;Spese correnti;3;Acquisto di beni e servizi;2;Acquisto di servizi;5;Utenze e canoni;4;Energia elettrica;14-03-2018;
207;2;0;"70,20";"3.459,18";E.N.E.L. ENERGIA S.P.A.;X37139C8F1;SALDO Fatt.n. 004801247788  del 08/09/2017 ILLUMINAZIONE PUBBLICA;14-03-2018;170236;0;105;1;Spese correnti;3;Acquisto di beni e servizi;2;Acquisto di servizi;5;Utenze e canoni;4;Energia elettrica;14-03-2018;
207;3;0;"103,74";"3.459,18";E.N.E.L. ENERGIA S.P.A.;X37139C8F1;SALDO Fatt.n. 004801247789  del 08/09/2017 ILLUMINAZIONE PUBBLICA;14-03-2018;170236;0;105;1;Spese correnti;3;Acquisto di beni e servizi;2;Acquisto di servizi;5;Utenze e canoni;4;Energia elettrica;14-03-2018;
207;4;0;"103,74";"3.459,18";E.N.E.L. ENERGIA S.P.A.;X37139C8F1;SALDO Fatt.n. 004801247797  del 08/09/2017 ILLUMINAZIONE PUBBLICA;14-03-2018;170236;0;105;1;Spese correnti;3;Acquisto di beni e servizi;2;Acquisto di servizi;5;Utenze e canoni;4;Energia elettrica;14-03-2018;
207;5;0;"108,47";"3.459,18";E.N.E.L. ENERGIA S.P.A.;X37139C8F1;SALDO Fatt.n. 004801247783  del 08/09/2017 ILLUMINAZIONE PUBBLICA;14-03-2018;170236;0;105;1;Spese correnti;3;Acquisto di beni e servizi;2;Acquisto di servizi;5;Utenze e canoni;4;Energia elettrica;14-03-2018;
207;6;0;"115,40";"3.459,18";E.N.E.L. ENERGIA S.P.A.;X37139C8F1;SALDO Fatt.n. 004801239295  del 08/09/2017 ILLUMINAZIONE PUBBLICA;14-03-2018;170236;0;105;1;Spese correnti;3;Acquisto di beni e servizi;2;Acquisto di servizi;5;Utenze e canoni;4;Energia elettrica;14-03-2018;
207;7;0;"173,67";"3.459,18";E.N.E.L. ENERGIA S.P.A.;X37139C8F1;SALDO Fatt.n. 004801247798  del 08/09/2017 ILLUMINAZIONE PUBBLICA;14-03-2018;170236;0;105;1;Spese correnti;3;Acquisto di beni e servizi;2;Acquisto di servizi;5;Utenze e canoni;4;Energia elettrica;14-03-2018;
207;8;0;"175,39";"3.459,18";E.N.E.L. ENERGIA S.P.A.;X37139C8F1;SALDO Fatt.n. 004801239299  del 08/09/2017 ILLUMINAZIONE PUBBLICA;14-03-2018;170236;0;105;1;Spese correnti;3;Acquisto di beni e servizi;2;Acquisto di servizi;5;Utenze e canoni;4;Energia elettrica;14-03-2018;
207;9;0;"179,71";"3.459,18";E.N.E.L. ENERGIA S.P.A.;X37139C8F1;SALDO Fatt.n. 004801247795  del 08/09/2017 ILLUMINAZIONE PUBBLICA;14-03-2018;170236;0;105;1;Spese correnti;3;Acquisto di beni e servizi;2;Acquisto di servizi;5;Utenze e canoni;4;Energia elettrica;14-03-2018;
207;10;0;"194,93";"3.459,18";E.N.E.L. ENERGIA S.P.A.;X37139C8F1;SALDO Fatt.n. 004801247791  del 08/09/2017 ILLUMINAZIONE PUBBLICA;14-03-2018;170236;0;105;1;Spese correnti;3;Acquisto di beni e servizi;2;Acquisto di servizi;5;Utenze e canoni;4;Energia elettrica;14-03-2018;
207;11;0;"199,67";"3.459,18";E.N.E.L. ENERGIA S.P.A.;X37139C8F1;SALDO Fatt.n. 004801249712  del 08/09/2017 ILLUMINAZIONE PUBBLICA;14-03-2018;170236;0;105;1;Spese correnti;3;Acquisto di beni e servizi;2;Acquisto di servizi;5;Utenze e canoni;4;Energia elettrica;14-03-2018;
207;12;0;"244,46";"3.459,18";E.N.E.L. ENERGIA S.P.A.;X37139C8F1;SALDO Fatt.n. 004801247796  del 08/09/2017 ILLUMINAZIONE PUBBLICA;14-03-2018;170236;0;105;1;Spese correnti;3;Acquisto di beni e servizi;2;Acquisto di servizi;5;Utenze e canoni;4;Energia elettrica;14-03-2018;
207;13;0;"312,04";"3.459,18";E.N.E.L. ENERGIA S.P.A.;X37139C8F1;SALDO Fatt.n. 004801247792  del 08/09/2017 ILLUMINAZIONE PUBBLICA;14-03-2018;170236;0;105;1;Spese correnti;3;Acquisto di beni e servizi;2;Acquisto di servizi;5;Utenze e canoni;4;Energia elettrica;14-03-2018;
207;14;0;"515,41";"3.459,18";E.N.E.L. ENERGIA S.P.A.;X37139C8F1;SALDO Fatt.n. 004801247794  del 08/09/2017 ILLUMINAZIONE PUBBLICA;14-03-2018;170236;0;105;1;Spese correnti;3;Acquisto di beni e servizi;2;Acquisto di servizi;5;Utenze e canoni;4;Energia elettrica;14-03-2018;
207;15;0;"911,89";"3.459,18";E.N.E.L. ENERGIA S.P.A.;X37139C8F1;SALDO Fatt.n. 004801239291  del 08/09/2017 ILLUMINAZIONE PUBBLICA;14-03-2018;170236;0;105;1;Spese correnti;3;Acquisto di beni e servizi;2;Acquisto di servizi;5;Utenze e canoni;4;Energia elettrica;14-03-2018;
211;1;0;"3.050,00";"3.050,00";TESSITORE   S.P.A.;ZE42145FC8;"SALDO Fatt.n. 38 / 1010  del 11/09/2017 Veicolo - Targa: BC334RJ , Telaio: ZCFA80D0002273754 , KM: 970794 , Descr Veicolo: ALTRI MARCHI - Z-ALTRE MARCHE";21-03-2018;140446;0;172;1;Spese correnti;3;Acquisto di beni e servizi;2;Acquisto di servizi;9;Manutenzione ordinaria e riparazioni;1;"Manutenzione ordinaria e riparazioni di mezzi di trasporto ad uso civile, di sicurezza e ordine pubblico";21-03-2018;
212;1;0;"5,88";"5,88";COMUNE DI ORTONA; ;RIMBORSO AL COMUNE DI ORTONA PER SPESE DI NOTIFICA;21-03-2018;190018;0;73;1;Spese correnti;10;Altre spese correnti;99;Altre spese correnti n.a.c.;99;Altre spese correnti n.a.c.;999;Altre spese correnti n.a.c.;21-03-2018;
213;1;0;"6.877,96";"6.877,96";CONSORZIO COOPERATIVE SOCIALI S.G.S.;Z9B2043A0F;SALDO Fatt.n. 1202/10  del 16/10/2017 ASSISTENZA ALUNNI H DA GENNAIO A GIUGNO 2017;21-03-2018;161540;0;126;1;Spese correnti;3;Acquisto di beni e servizi;2;Acquisto di servizi;15;Contratti di servizio pubblico;3;Contratti di servizio per il trasporto di disabili e anziani;21-03-2018;
214;1;0;"82,34";"82,34";ARUBA S.P.A.; ;SALDO Fatt.n. A17PAS0009561  del 31/08/2017 RINNOVO CASELLE GMAIL EMAIL E ATISPAM;21-03-2018;110248;0;27;1;Spese correnti;3;Acquisto di beni e servizi;2;Acquisto di servizi;19;Servizi informatici e di telecomunicazioni;1;Gestione e manutenzione applicazioni;21-03-2018;
215;1;0;"1.443,75";"1.443,75";BLUE LINE SOC. COOP. SOCIALE;ZA81DEEBE0;SALDO Fatt.n. 268  del 30/09/2017 BORSA LAVORO DI SETTEMBRE 2017;21-03-2018;161548;0;100;1;Spese correnti;3;Acquisto di beni e servizi;2;Acquisto di servizi;15;Contratti di servizio pubblico;999;Altre spese per contratti di servizio pubblico;21-03-2018;
216;1;0;"1.149,88";"4.386,57";CONSORZIO COOPERATIVE SOCIALI S.G.S.;Z3F1EC18D2;SALDO Fatt.n. 1392/10  del 13/12/2017 ASSISTENZA ALUNNI H MESE DI SETTEMBRE 2017;21-03-2018;161540;0;126;1;Spese correnti;3;Acquisto di beni e servizi;2;Acquisto di servizi;15;Contratti di servizio pubblico;3;Contratti di servizio per il trasporto di disabili e anziani;21-03-2018;
216;2;0;"1.597,05";"4.386,57";CONSORZIO COOPERATIVE SOCIALI S.G.S.;Z3F1EC18D2;SALDO Fatt.n. 1394/10  del 13/12/2017 ASSISTENZA SUGLI SCUOLA BUS ALUNNI H NEL MESE DI NOVEMBRE 2017;21-03-2018;161540;0;126;1;Spese correnti;3;Acquisto di beni e servizi;2;Acquisto di servizi;15;Contratti di servizio pubblico;3;Contratti di servizio per il trasporto di disabili e anziani;21-03-2018;
216;3;0;"1.639,64";"4.386,57";CONSORZIO COOPERATIVE SOCIALI S.G.S.;Z3F1EC18D2;SALDO Fatt.n. 1393/10  del 13/12/2017 ASSISTENZA ALUNNI H NEL MESE DI OTTOBRE 2017;21-03-2018;161540;0;126;1;Spese correnti;3;Acquisto di beni e servizi;2;Acquisto di servizi;15;Contratti di servizio pubblico;3;Contratti di servizio per il trasporto di disabili e anziani;21-03-2018;
217;1;0;"-0,60";"6.999,18";LA RONDINE;X16109ECEF;SALDO Fatt.n. 34/01  del 12/07/2017 GESTIONE SERVIZIO DI VIGILANZA SUGLI SCUOLABUS - MESE DI FEBBRAIO 2017;21-03-2018;140440;0;131;1;Spese correnti;3;Acquisto di beni e servizi;2;Acquisto di servizi;15;Contratti di servizio pubblico;999;Altre spese per contratti di servizio pubblico;21-03-2018;
217;2;0;"1.096,24";"6.999,18";LA RONDINE;X16109ECEF;SALDO Fatt.n. 42/01  del 13/07/2017 GESTIONE SERVIZIO DI VIGILANZA SUGLI SCUOLABUS - MESE DI GIUGNO 2017;21-03-2018;140440;0;131;1;Spese correnti;3;Acquisto di beni e servizi;2;Acquisto di servizi;15;Contratti di servizio pubblico;999;Altre spese per contratti di servizio pubblico;21-03-2018;
217;3;0;"1.482,62";"6.999,18";LA RONDINE;X16109ECEF;SALDO Fatt.n. 36/01  del 12/07/2017 GESTIONE SERVIZIO DI VIGILANZA SUGLI SCUOLABUS - MESE DI APRILE 2017;21-03-2018;140440;0;131;1;Spese correnti;3;Acquisto di beni e servizi;2;Acquisto di servizi;15;Contratti di servizio pubblico;999;Altre spese per contratti di servizio pubblico;21-03-2018;
217;4;0;"2.066,69";"6.999,18";LA RONDINE;X16109ECEF;SALDO Fatt.n. 37/01  del 12/07/2017 GESTIONE SERVIZIO DI VIGILANZA SUGLI SCUOLABUS - MESE DI MAGGIO 2017;21-03-2018;140440;0;131;1;Spese correnti;3;Acquisto di beni e servizi;2;Acquisto di servizi;15;Contratti di servizio pubblico;999;Altre spese per contratti di servizio pubblico;21-03-2018;
217;5;0;"2.354,23";"6.999,18";LA RONDINE;X16109ECEF;SALDO Fatt.n. 35/01  del 12/07/2017 GESTIONE SERVIZIO DI VIGILANZA SUGLI SCUOLABUS - MESE DI MARZO 2017;21-03-2018;140440;0;131;1;Spese correnti;3;Acquisto di beni e servizi;2;Acquisto di servizi;15;Contratti di servizio pubblico;999;Altre spese per contratti di servizio pubblico;21-03-2018;
218;1;0;"108,52";"135,21";EDIF SPA;Z751D6645A;SALDO Fatt.n. 000823  del 30/11/2017 MATERIALE ELETTRICO;21-03-2018;170224;0;54;1;Spese correnti;3;Acquisto di beni e servizi;1;Acquisto di beni;2;Altri beni di consumo;999;Altri beni e materiali di consumo n.a.c.;21-03-2018;
218;2;0;"26,69";"135,21";EUROLUX S.R.L.;Z751D6645A;SALDO Fatt.n. 17/1485  del 30/11/2017 MATERIALE ELETTRICO;21-03-2018;170224;0;54;1;Spese correnti;3;Acquisto di beni e servizi;1;Acquisto di beni;2;Altri beni di consumo;999;Altri beni e materiali di consumo n.a.c.;21-03-2018;
219;1;0;"472,46";"638,99";DELLE VIGNE TOMMASO S.R.L.;Z1D1D6632F;SALDO Fatt.n. 849/02  del 30/09/2017 FERRAMENTA;21-03-2018;170112;0;53;1;Spese correnti;3;Acquisto di beni e servizi;1;Acquisto di beni;2;Altri beni di consumo;999;Altri beni e materiali di consumo n.a.c.;21-03-2018;
219;2;0;"166,53";"638,99";DI BIASE D. & C. S.N.C.;Z1D1D6632F;SALDO Fatt.n. 26/PA  del 30/11/2017 MATERIALE IDROTERMOSANITARIO;21-03-2018;170112;0;53;1;Spese correnti;3;Acquisto di beni e servizi;1;Acquisto di beni;2;Altri beni di consumo;999;Altri beni e materiali di consumo n.a.c.;21-03-2018;
220;1;0;"134,20";"134,20";FIND SERVICE GENIOLA S.R.L.;ZA61D664D0;SALDO Fatt.n. 11/01  del 30/11/2017 NOLO PIATTAFORMA;21-03-2018;170144;0;95;1;Spese correnti;3;Acquisto di beni e servizi;2;Acquisto di servizi;7;Utilizzo di beni di terzi;8;Noleggi di impianti e macchinari;21-03-2018;
221;1;0;"353,80";"353,80";AMBIQ S.R.L.;Z0D1D662CB;SALDO Fatt.n. 480/2017  del 31/10/2017 DERATTIZZAZIONE E DISINFESTAZIONE DEL 05/10/2017;21-03-2018;161232;0;85;1;Spese correnti;3;Acquisto di beni e servizi;2;Acquisto di servizi;15;Contratti di servizio pubblico;999;Altre spese per contratti di servizio pubblico;21-03-2018;
222;1;0;"256,20";"256,20";DI BIASE D. & C. S.N.C.;Z8C1D664AB;SALDO Fatt.n. 25/PA  del 27/11/2017 MATERIALE IDROTERMOSANITARIO;21-03-2018;140210;0;52;1;Spese correnti;3;Acquisto di beni e servizi;1;Acquisto di beni;2;Altri beni di consumo;999;Altri beni e materiali di consumo n.a.c.;21-03-2018;
246;1;0;"1.264,94";"2.675,80";POSTE ITALIANE S.P.A.;Z7B14AEE33;SALDO Fatt.n. 8717328939  del 31/10/2017 CORRISPONDENZE AFFRANCATE NEL MESE DI AGOSTO 2017;23-03-2018;110260;0;135;1;Spese correnti;3;Acquisto di beni e servizi;2;Acquisto di servizi;16;Servizi amministrativi;2;Spese postali;23-03-2018;
246;2;0;"1.410,86";"2.675,80";POSTE ITALIANE S.P.A.;Z7B14AEE33;SALDO Fatt.n. 8717352121  del 16/11/2017 CORRISPONDENZE AFFRANCATE NEL MESE DI SETTEMBRE 2017;23-03-2018;110260;0;135;1;Spese correnti;3;Acquisto di beni e servizi;2;Acquisto di servizi;16;Servizi amministrativi;2;Spese postali;23-03-2018;
247;1;0;"114,68";"272,67";GASPARI E. S.R.L.;Z0D207552F;SALDO Fatt.n. 16260  del 30/11/2017 REGISTRO ECONOMO-CUSTODIE CARTE ID-CARTELLINO CON DICHIARAZIONE;23-03-2018;110224;0;155;1;Spese correnti;3;Acquisto di beni e servizi;1;Acquisto di beni;2;Altri beni di consumo;1;"Carta, cancelleria e stampati";23-03-2018;
247;2;0;"157,99";"272,67";GASPARI E. S.R.L.;Z0D207552F;SALDO Fatt.n. 16052  del 29/11/2017 FOGLI DI STATO CIVILE A MACCHINA;23-03-2018;110224;0;155;1;Spese correnti;3;Acquisto di beni e servizi;1;Acquisto di beni;2;Altri beni di consumo;1;"Carta, cancelleria e stampati";23-03-2018;
248;1;0;"2.013,00";"2.013,00";MYO S.R.L.;Z542053B6A;SALDO Fatt.n. 2040/170030088  del 30/11/2017 SERVIZIO INVENTARIO BENI MOBILI ED IMMOBILI;23-03-2018;110248;0;170;1;Spese correnti;3;Acquisto di beni e servizi;2;Acquisto di servizi;19;Servizi informatici e di telecomunicazioni;10;Servizi di consulenza e prestazioni professionali ICT;23-03-2018;
249;1;0;"73,18";"73,18";PAPER ONE di MONICA BUCCELLA;Z6D1D90C9A;SALDO Fatt.n. N.5  del 09/05/2017 LIBRI DI TESTO;23-03-2018;140434;0;166;1;Spese correnti;3;Acquisto di beni e servizi;1;Acquisto di beni;2;Altri beni di consumo;1;"Carta, cancelleria e stampati";23-03-2018;
250;1;0;"600,00";"600,00";IT CREATIVE DI D'ANGELO FRANCESCO;Z6D1D90C9A;SALDO Fatt.n. 24/A  del 27/11/2017 ASSISTENZA POSTAZIONI INFORMATICHE E SITO ISTITUZIONALE NOVEMBRE 2017;23-03-2018;110248;0;122;1;Spese correnti;3;Acquisto di beni e servizi;2;Acquisto di servizi;19;Servizi informatici e di telecomunicazioni;10;Servizi di consulenza e prestazioni professionali ICT;23-03-2018;
251;1;0;"6,73";"3.046,52";E.N.E.L. ENERGIA S.P.A.;X37139C8F1;SALDO Fatt.n. 004801381844  del 08/10/2017 ENERGIA ELETTRICA   I.P.;23-03-2018;170236;0;105;1;Spese correnti;3;Acquisto di beni e servizi;2;Acquisto di servizi;5;Utenze e canoni;4;Energia elettrica;23-03-2018;
251;2;0;"6,93";"3.046,52";E.N.E.L. ENERGIA S.P.A.;X37139C8F1;SALDO Fatt.n. 004801382170  del 08/10/2017 ENERGIA ELETTRICA   I.P.;23-03-2018;170236;0;105;1;Spese correnti;3;Acquisto di beni e servizi;2;Acquisto di servizi;5;Utenze e canoni;4;Energia elettrica;23-03-2018;
251;3;0;"9,54";"3.046,52";E.N.E.L. ENERGIA S.P.A.;X37139C8F1;SALDO Fatt.n. 004801379641  del 08/10/2017 ENERGIA ELETTRICA I.P.;23-03-2018;170236;0;105;1;Spese correnti;3;Acquisto di beni e servizi;2;Acquisto di servizi;5;Utenze e canoni;4;Energia elettrica;23-03-2018;
251;4;0;"13,42";"3.046,52";E.N.E.L. ENERGIA S.P.A.;X37139C8F1;SALDO Fatt.n. 004801379637  del 08/10/2017 ENERGIA ELETTRICA   I.P.;23-03-2018;170236;0;105;1;Spese correnti;3;Acquisto di beni e servizi;2;Acquisto di servizi;5;Utenze e canoni;4;Energia elettrica;23-03-2018;
251;5;0;"15,43";"3.046,52";E.N.E.L. ENERGIA S.P.A.;X37139C8F1;SALDO Fatt.n. 004801379645  del 08/10/2017 ENERGIA ELETTRICA   I.P.;23-03-2018;170236;0;105;1;Spese correnti;3;Acquisto di beni e servizi;2;Acquisto di servizi;5;Utenze e canoni;4;Energia elettrica;23-03-2018;
251;6;0;"24,79";"3.046,52";E.N.E.L. ENERGIA S.P.A.;X37139C8F1;SALDO Fatt.n. 004801381842  del 08/10/2017 ENERGIA ELETTRICA I.P.;23-03-2018;170236;0;105;1;Spese correnti;3;Acquisto di beni e servizi;2;Acquisto di servizi;5;Utenze e canoni;4;Energia elettrica;23-03-2018;
251;7;0;"32,57";"3.046,52";E.N.E.L. ENERGIA S.P.A.;X37139C8F1;SALDO Fatt.n. 004801381840  del 08/10/2017 ENERGIA ELETTRICA I.P.;23-03-2018;170236;0;105;1;Spese correnti;3;Acquisto di beni e servizi;2;Acquisto di servizi;5;Utenze e canoni;4;Energia elettrica;23-03-2018;
251;8;0;"32,78";"3.046,52";E.N.E.L. ENERGIA S.P.A.;X37139C8F1;SALDO Fatt.n. 004801379633  del 08/10/2017 ENERGIA ELETTRICA I.P.;23-03-2018;170236;0;105;1;Spese correnti;3;Acquisto di beni e servizi;2;Acquisto di servizi;5;Utenze e canoni;4;Energia elettrica;23-03-2018;
251;9;0;"33,27";"3.046,52";E.N.E.L. ENERGIA S.P.A.;X37139C8F1;SALDO Fatt.n. 004801381839  del 08/10/2017 ENERGIA ELETTRICA   I.P.;23-03-2018;170236;0;105;1;Spese correnti;3;Acquisto di beni e servizi;2;Acquisto di servizi;5;Utenze e canoni;4;Energia elettrica;23-03-2018;
251;10;0;"67,92";"3.046,52";E.N.E.L. ENERGIA S.P.A.;X37139C8F1;SALDO Fatt.n. 004801379635  del 08/10/2017 ENERGIA ELETTRICA I.P.;23-03-2018;170236;0;105;1;Spese correnti;3;Acquisto di beni e servizi;2;Acquisto di servizi;5;Utenze e canoni;4;Energia elettrica;23-03-2018;
251;11;0;"73,77";"3.046,52";E.N.E.L. ENERGIA S.P.A.;X37139C8F1;SALDO Fatt.n. 004801382164  del 08/10/2017 ENERGIA ELETTRICA I.P.;23-03-2018;170236;0;105;1;Spese correnti;3;Acquisto di beni e servizi;2;Acquisto di servizi;5;Utenze e canoni;4;Energia elettrica;23-03-2018;
251;12;0;"79,18";"3.046,52";E.N.E.L. ENERGIA S.P.A.;X37139C8F1;SALDO Fatt.n. 004801379638  del 08/10/2017 ENERGIA ELETTRICA   I.P.;23-03-2018;170236;0;105;1;Spese correnti;3;Acquisto di beni e servizi;2;Acquisto di servizi;5;Utenze e canoni;4;Energia elettrica;23-03-2018;
251;13;0;"117,00";"3.046,52";E.N.E.L. ENERGIA S.P.A.;X37139C8F1;SALDO Fatt.n. 004801379639  del 08/10/2017 ENERGIA ELETTRICA I.P.;23-03-2018;170236;0;105;1;Spese correnti;3;Acquisto di beni e servizi;2;Acquisto di servizi;5;Utenze e canoni;4;Energia elettrica;23-03-2018;
251;14;0;"153,38";"3.046,52";E.N.E.L. ENERGIA S.P.A.;X37139C8F1;SALDO Fatt.n. 004801379642  del 08/10/2017 ENERGIA ELETTRICA I.P.;23-03-2018;170236;0;105;1;Spese correnti;3;Acquisto di beni e servizi;2;Acquisto di servizi;5;Utenze e canoni;4;Energia elettrica;23-03-2018;
251;15;0;"260,59";"3.046,52";E.N.E.L. ENERGIA S.P.A.;X37139C8F1;SALDO Fatt.n. 004801379651  del 08/10/2017 ENERGIA ELETTRICA   I.P.;23-03-2018;170236;0;105;1;Spese correnti;3;Acquisto di beni e servizi;2;Acquisto di servizi;5;Utenze e canoni;4;Energia elettrica;23-03-2018;
251;16;0;"327,20";"3.046,52";E.N.E.L. ENERGIA S.P.A.;X37139C8F1;SALDO Fatt.n. 004801384188  del 08/10/2017 ENERGIA ELETTRICA I.P.;23-03-2018;170236;0;105;1;Spese correnti;3;Acquisto di beni e servizi;2;Acquisto di servizi;5;Utenze e canoni;4;Energia elettrica;23-03-2018;
251;17;0;"1.792,02";"3.046,52";E.N.E.L. ENERGIA S.P.A.;X37139C8F1;SALDO Fatt.n. 004801381841  del 08/10/2017 ENERGIA ELETTRICA   I.P.;23-03-2018;170236;0;105;1;Spese correnti;3;Acquisto di beni e servizi;2;Acquisto di servizi;5;Utenze e canoni;4;Energia elettrica;23-03-2018;
252;1;0;"13,66";"3.245,26";E.N.E.L. ENERGIA S.P.A.;X37139C8F1;SALDO Fatt.n. 004801382169  del 08/10/2017 ENERGIA ELETTRICA I.P.;23-03-2018;170236;0;105;1;Spese correnti;3;Acquisto di beni e servizi;2;Acquisto di servizi;5;Utenze e canoni;4;Energia elettrica;23-03-2018;
252;2;0;"28,67";"3.245,26";E.N.E.L. ENERGIA S.P.A.;X37139C8F1;SALDO Fatt.n. 004801381848  del 08/10/2017 ENERGIA ELETTRICA   I.P.;23-03-2018;170236;0;105;1;Spese correnti;3;Acquisto di beni e servizi;2;Acquisto di servizi;5;Utenze e canoni;4;Energia elettrica;23-03-2018;
252;3;0;"30,60";"3.245,26";E.N.E.L. ENERGIA S.P.A.;X37139C8F1;SALDO Fatt.n. 004801379636  del 08/10/2017 ENERGIA ELETTRICA   I.P.;23-03-2018;170236;0;105;1;Spese correnti;3;Acquisto di beni e servizi;2;Acquisto di servizi;5;Utenze e canoni;4;Energia elettrica;23-03-2018;
252;4;0;"33,68";"3.245,26";E.N.E.L. ENERGIA S.P.A.;X37139C8F1;SALDO Fatt.n. 004801416880  del 14/10/2017 ENERGIA ELETTRICA I.P.;23-03-2018;170236;0;105;1;Spese correnti;3;Acquisto di beni e servizi;2;Acquisto di servizi;5;Utenze e canoni;4;Energia elettrica;23-03-2018;
252;5;0;"55,27";"3.245,26";E.N.E.L. ENERGIA S.P.A.;X37139C8F1;SALDO Fatt.n. 004801382166  del 08/10/2017 ENERGIA ELETTRICA I.P.;23-03-2018;170236;0;105;1;Spese correnti;3;Acquisto di beni e servizi;2;Acquisto di servizi;5;Utenze e canoni;4;Energia elettrica;23-03-2018;
252;6;0;"82,18";"3.245,26";E.N.E.L. ENERGIA S.P.A.;X37139C8F1;SALDO Fatt.n. 004801381847  del 08/10/2017 ENERGIA ELETTRICA I.P.;23-03-2018;170236;0;105;1;Spese correnti;3;Acquisto di beni e servizi;2;Acquisto di servizi;5;Utenze e canoni;4;Energia elettrica;23-03-2018;
252;7;0;"105,47";"3.245,26";E.N.E.L. ENERGIA S.P.A.;X37139C8F1;SALDO Fatt.n. 004801379650  del 08/10/2017 ENERGIA ELETTRICA I.P.;23-03-2018;170236;0;105;1;Spese correnti;3;Acquisto di beni e servizi;2;Acquisto di servizi;5;Utenze e canoni;4;Energia elettrica;23-03-2018;
252;8;0;"120,02";"3.245,26";E.N.E.L. ENERGIA S.P.A.;X37139C8F1;SALDO Fatt.n. 004801379632  del 08/10/2017 ENERGIA ELETTRICA   I.P.;23-03-2018;170236;0;105;1;Spese correnti;3;Acquisto di beni e servizi;2;Acquisto di servizi;5;Utenze e canoni;4;Energia elettrica;23-03-2018;
252;9;0;"130,65";"3.245,26";E.N.E.L. ENERGIA S.P.A.;X37139C8F1;SALDO Fatt.n. 004801382165  del 08/10/2017 ENERGIA ELETTRICA I.P.;23-03-2018;170236;0;105;1;Spese correnti;3;Acquisto di beni e servizi;2;Acquisto di servizi;5;Utenze e canoni;4;Energia elettrica;23-03-2018;
252;10;0;"171,58";"3.245,26";E.N.E.L. ENERGIA S.P.A.;X37139C8F1;SALDO Fatt.n. 004801415040  del 14/10/2017 ENERGIA ELETTRICA I.P.;23-03-2018;170236;0;105;1;Spese correnti;3;Acquisto di beni e servizi;2;Acquisto di servizi;5;Utenze e canoni;4;Energia elettrica;23-03-2018;
252;11;0;"185,32";"3.245,26";E.N.E.L. ENERGIA S.P.A.;X37139C8F1;SALDO Fatt.n. 004801382171  del 08/10/2017 ENERGIA ELETTRICA I.P.;23-03-2018;170236;0;105;1;Spese correnti;3;Acquisto di beni e servizi;2;Acquisto di servizi;5;Utenze e canoni;4;Energia elettrica;23-03-2018;
252;12;0;"220,72";"3.245,26";E.N.E.L. ENERGIA S.P.A.;X37139C8F1;SALDO Fatt.n. 004801379648  del 08/10/2017 ENERGIA ELETTRICA I.P.;23-03-2018;170236;0;105;1;Spese correnti;3;Acquisto di beni e servizi;2;Acquisto di servizi;5;Utenze e canoni;4;Energia elettrica;23-03-2018;
252;13;0;"226,18";"3.245,26";E.N.E.L. ENERGIA S.P.A.;X37139C8F1;SALDO Fatt.n. 004801388096  del 08/10/2017 ENERGIA ELETTRICA   I.P.;23-03-2018;170236;0;105;1;Spese correnti;3;Acquisto di beni e servizi;2;Acquisto di servizi;5;Utenze e canoni;4;Energia elettrica;23-03-2018;
252;14;0;"229,60";"3.245,26";E.N.E.L. ENERGIA S.P.A.;X37139C8F1;SALDO Fatt.n. 004801379643  del 08/10/2017 ENERGIA ELETTRICA I.P.;23-03-2018;170236;0;105;1;Spese correnti;3;Acquisto di beni e servizi;2;Acquisto di servizi;5;Utenze e canoni;4;Energia elettrica;23-03-2018;
252;15;0;"294,08";"3.245,26";E.N.E.L. ENERGIA S.P.A.;X37139C8F1;SALDO Fatt.n. 004801379649  del 08/10/2017 ENERGIA ELETTRICA I.P.;23-03-2018;170236;0;105;1;Spese correnti;3;Acquisto di beni e servizi;2;Acquisto di servizi;5;Utenze e canoni;4;Energia elettrica;23-03-2018;
252;16;0;"491,75";"3.245,26";E.N.E.L. ENERGIA S.P.A.;X37139C8F1;SALDO Fatt.n. 004801379646  del 08/10/2017 ENERGIA ELETTRICA   I.P.;23-03-2018;170236;0;105;1;Spese correnti;3;Acquisto di beni e servizi;2;Acquisto di servizi;5;Utenze e canoni;4;Energia elettrica;23-03-2018;
252;17;0;"825,83";"3.245,26";E.N.E.L. ENERGIA S.P.A.;X37139C8F1;SALDO Fatt.n. 004801381845  del 08/10/2017 ENERGIA ELETTRICA I.P.;23-03-2018;170236;0;105;1;Spese correnti;3;Acquisto di beni e servizi;2;Acquisto di servizi;5;Utenze e canoni;4;Energia elettrica;23-03-2018;
253;1;0;"524,60";"524,60";FIND SERVICE GENIOLA S.R.L.;ZA61D664D0;SALDO Fatt.n. 9/001  del 31/10/2017 NOLO PIATTAFORMA  GIORNI VARI;23-03-2018;170144;0;95;1;Spese correnti;3;Acquisto di beni e servizi;2;Acquisto di servizi;7;Utilizzo di beni di terzi;8;Noleggi di impianti e macchinari;23-03-2018;
254;1;0;"1.834,39";"1.834,39";CONSORZIO COMPRENSORIALE SMALTIMENTO.ECO.LAN. S.P.A.;ZF01E96446;SALDO Fatt.n. 100814  del 31/08/2017 CONFERIMENTO MATERIALI MISTI AGOSTO 2017;23-03-2018;160944;0;89;1;Spese correnti;3;Acquisto di beni e servizi;2;Acquisto di servizi;15;Contratti di servizio pubblico;5;Contratti di servizio per il conferimento in discarica dei rifiuti;23-03-2018;
256;1;0;"26,23";"31,27";AUTOSTRADE PER L'ITALIA;0;ACCONTO Fatt.n. 900006098D  del 30/03/2018 PEDAGGI AUTOSTRADALI MARZO 2018;30-03-2018;130132;0;56;1;Spese correnti;3;Acquisto di beni e servizi;2;Acquisto di servizi;13;Servizi ausiliari per il funzionamento dell'ente;999;Altri servizi ausiliari n.a.c.;30-03-2018;
256;2;0;"0,91";"31,27";BANCA POPOLARE DELL'EMILIA ROMAGNA; ;PEDAGGI AUTOSTRADALI;30-03-2018;130132;0;56;1;Spese correnti;3;Acquisto di beni e servizi;2;Acquisto di servizi;13;Servizi ausiliari per il funzionamento dell'ente;999;Altri servizi ausiliari n.a.c.;30-03-2018;
256;3;0;"4,13";"31,27";TELEPASS S.P.A.;0;ACCONTO Fatt.n. 900006452T  del 30/03/2018 CANONE LOCAZIONE TELEPASS MARZO 2018;30-03-2018;130132;0;56;1;Spese correnti;3;Acquisto di beni e servizi;2;Acquisto di servizi;13;Servizi ausiliari per il funzionamento dell'ente;999;Altri servizi ausiliari n.a.c.;30-03-2018;
